Workbook

Sheet Euro Truck
A1: Estimation Tool for transportations round Russian Federation from Serpukhov
N2: ГОРОД | O2: КМ | P2: AGILITY | Q2: DACHSER | R2: ASSTRA | S2: SOVTRANS | T2: MIN | U2: Перевозчик | W2: ГОРОД | X2: AGILITY | Y2: DACHSER | Z2: ASSTRA | AA2: SOVTRANS | AB2: MIN | AC2: Перевозчик
A3: Please choose the correct conditions for transportation and fill in the green cells : | N3: ACTAU | O3: 2600 | P3: 999999 | Q3: 215000 | R3: 175000 | S3: 189000 | T3: =MIN(P3:S3) -> 175000 | U3: =IF(T3=P3,$P$2,IF(Q3=T3,$Q$2,IF(T3=R3,$R$2,IF(T3=S3,$S$2,0)))) -> ASSTRA | W3: ACTAU | X3: =IFERROR(P3-P3*10%,0) -> 899999.1 | Y3: =IFERROR(Q3-Q3*10%,0) -> 193500 | Z3: =IFERROR(R3-R3*10%,0) -> 157500 | AA3: =IFERROR(S3-S3*10%,0) -> 170100 | AB3: =MIN(X3:AA3) -> 157500 | AC3: =IF(AB3=X3,$X$2,IF(Y3=AB3,$Y$2,IF(AB3=Z3,$Z$2,IF(AB3=AA3,$AA$2,0)))) -> ASSTRA
A4: Equipment | B4: Unit of measure | C4: Estimated amount | D4: Amount of required transport | N4: ATYRAU | O4: 1700 | P4: 999999 | Q4: 160000 | R4: 135000 | S4: 117000 | T4: 117000 | U4: =IF(T4=P4,$P$2,IF(Q4=T4,$Q$2,IF(T4=R4,$R$2,IF(T4=S4,$S$2,0)))) -> SOVTRANS | W4: ATYRAU | X4: =IFERROR(P4-P4*10%,0) -> 899999.1 | Y4: =IFERROR(Q4-Q4*10%,0) -> 144000 | Z4: =IFERROR(R4-R4*10%,0) -> 121500 | AA4: =IFERROR(S4-S4*10%,0) -> 105300 | AB4: =MIN(X4:AA4) -> 105300 | AC4: =IF(AB4=X4,$X$2,IF(Y4=AB4,$Y$2,IF(AB4=Z4,$Z$2,IF(AB4=AA4,$AA$2,0)))) -> SOVTRANS
A5: Random Packing (gross volume from Sulprice) | B5: m3 | C5: 40 | D5: =C5/44 -> 0.9090909091 | N5: ACHINSK | O5: 4100 | P5: 228000 | Q5: 265000 | R5: 240000 | S5: 241000 | T5: 228000 | U5: AGILITY | W5: ACHINSK | X5: 205200 | Y5: 238500 | Z5: 216000 | AA5: 216900 | AB5: 205200 | AC5: AGILITY
A6: Structured Packing (gross volume from Sulprice) | B6: m3 | C6: 35 | D6: =C6/39 -> 0.8974358974 | N6: ANGARSK | O6: 5300 | P6: 397000 | Q6: 340000 | R6: 395000 | S6: 295100 | T6: 295100 | U6: SOVTRANS | W6: ANGARSK | X6: 357300 | Y6: 306000 | Z6: 355500 | AA6: 265590 | AB6: 265590 | AC6: SOVTRANS
A7: Trays (gross weight from Sulprice) | B7: kg | C7: 0 | D7: =C7/7000 -> 0 | N7: ASTRAKHAN | O7: 1400 | P7: 77000 | Q7: 92000 | R7: 89000 | S7: 85000 | T7: 77000 | U7: AGILITY | W7: ASTRAKHAN | X7: 69300 | Y7: 82800 | Z7: 80100 | AA7: 76500 | AB7: 69300 | AC7: AGILITY
A8: Internals (gross weight from Sulprice) | B8: kg | C8: 0 | D8: =C8/8000 -> 0 | H8: MOZYR, BY | N8: BALASHIHA | O8: 120 | P8: 16000 | Q8: 19500 | R8: 20000 | S8: 17600 | T8: 16000 | U8: AGILITY | W8: BALASHIHA | X8: =IFERROR(P8-P8*15%,0) -> 13600 | Y8: =IFERROR(Q8-Q8*15%,0) -> 16575 | Z8: 17000 | AA8: 14960 | AB8: 13600 | AC8: AGILITY
A9: Total q-ty of standard trucks or containers x 40 " | D9: =ROUNDUP(SUM(D5:D8),0) -> 2 | H9: NOVOPOLOCK. BY | N9: BLAGOVESHSCENSK, AMUR | O9: 7900 | P9: 596000 | Q9: 550000 | R9: 480000 | S9: 497000 | T9: 480000 | U9: ASSTRA | W9: BLAGOVESHSCENSK, AMUR | X9: 536400 | Y9: 495000 | Z9: 432000 | AA9: 447300 | AB9: 432000 | AC9: ASSTRA
H10: ATYRAU | N10: BLAGOVESHSCENSK, BASH | O10: 1400 | P10: 82000 | Q10: 100000 | R10: 88000 | S10: 84000 | T10: 82000 | U10: AGILITY | W10: BLAGOVESHSCENSK, BASH | X10: 73800 | Y10: 90000 | Z10: 79200 | AA10: 75600 | AB10: 73800 | AC10: AGILITY
A11: Destination City | B11: BALASHIHA | H11: ACTAU | N11: BORISOGLEBSK | O11: 580 | P11: 33000 | Q11: 42000 | R11: 45000 | S11: 43000 | T11: 33000 | U11: AGILITY | W11: BORISOGLEBSK | X11: 29700 | Y11: 37800 | Z11: 40500 | AA11: 38700 | AB11: 29700 | AC11: AGILITY
A12: Transportation time, days | B12: =ROUNDUP(VLOOKUP(B11,N:O,2,0)/500,0) -> 1 | N12: BRATSK | O12: 4900 | P12: 390000 | Q12: 335000 | R12: 320000 | S12: 311600 | T12: 311600 | U12: SOVTRANS | W12: BRATSK | X12: 351000 | Y12: 301500 | Z12: 288000 | AA12: 280440 | AB12: 280440 | AC12: SOVTRANS
N13: DOROGOBUZH | O13: 350 | P13: 27000 | Q13: 30000 | R13: 40000 | S13: 28400 | T13: 27000 | U13: AGILITY | W13: DOROGOBUZH | X13: 24300 | Y13: 27000 | Z13: 36000 | AA13: 25560 | AB13: 24300 | AC13: AGILITY
A14: Details: | N14: DZERZHINSK | O14: 480 | P14: 33000 | Q14: 37000 | R14: 33000 | S14: 29990 | T14: 29990 | U14: SOVTRANS | W14: DZERZHINSK | X14: =IFERROR(P14-P14*15%,0) -> 28050 | Y14: =IFERROR(Q14-Q14*15%,0) -> 31450 | Z14: 28050 | AA14: 25491.5 | AB14: 25491.5 | AC14: SOVTRANS
A15: COO, once for an ICO | B15: =IF(ISNUMBER(MATCH($B$11,$H$8:$H$11,0)),5900,0) -> 0 | N15: GAGARIN | O15: 200 | P15: 19000 | Q15: 25000 | R15: 40000 | S15: 24200 | T15: 19000 | U15: AGILITY | W15: GAGARIN | X15: =IFERROR(P15-P15*15%,0) -> 16150 | Y15: 21250 | Z15: 34000 | AA15: 20570 | AB15: 16150 | AC15: AGILITY
A16: InC from FSTEC of Russia, once for an ICO | B16: =IF(ISNUMBER(MATCH($B$11,$H$8:$H$11,0)),8000,0) -> 0 | N16: HANTY-MANSIISK | O16: 2700 | P16: 202000 | Q16: 180000 | R16: 999999 | S16: 220000 | T16: 180000 | U16: DACHSER | W16: HANTY-MANSIISK | X16: =IFERROR(P16-P16*15%,0) -> 171700 | Y16: 153000 | Z16: 849999.15 | AA16: 187000 | AB16: 153000 | AC16: DACHSER
A17: Total freight & logistics costs | B17: =SUM(B15:B16) -> 0 | N17: KALUGA | O17: 110 | P17: 16000 | Q17: 23000 | R17: 24000 | S17: 18700 | T17: 16000 | U17: AGILITY | W17: KALUGA | X17: =IFERROR(P17-P17*15%,0) -> 13600 | Y17: =IFERROR(Q17-Q17*15%,0) -> 19550 | Z17: =IFERROR(R17-R17*15%,0) -> 20400 | AA17: 15895 | AB17: 13600 | AC17: AGILITY
A18: Details: | B18: 🚚 Truck Euro | F18: 🚚 Truck Euro | N18: KAZAN | O18: 910 | P18: 52000 | Q18: 60000 | R18: 65000 | S18: 61100 | T18: 52000 | U18: AGILITY | W18: KAZAN | X18: =IFERROR(P18-P18*15%,0) -> 44200 | Y18: 51000 | Z18: 55250 | AA18: 51935 | AB18: 44200 | AC18: AGILITY
A19: Total freight forwarder & logistics costs | B19: =IF(ISNA(VLOOKUP(B11,H8:H11,1,0))=TRUE,VLOOKUP(B11,W:AC,6,0)*D9,SUM(VLOOKUP(B11,W:AC,6,0)*D9,B17)) -> 27200 | F19: =VLOOKUP(B11,W:AC,7,0) -> AGILITY | N19: KEMEROVO | O19: 3700 | P19: 206000 | Q19: 255000 | R19: 195000 | S19: 210990 | T19: 195000 | U19: ASSTRA | W19: KEMEROVO | X19: =IFERROR(P19-P19*10%,0) -> 185400 | Y19: =IFERROR(Q19-Q19*10%,0) -> 229500 | Z19: =IFERROR(R19-R19*10%,0) -> 175500 | AA19: 179341.5 | AB19: 175500 | AC19: ASSTRA
N20: KIRISHI | O20: 750 | P20: 44000 | Q20: 43000 | R20: 40000 | S20: 40000 | T20: 40000 | U20: ASSTRA | W20: KIRISHI | X20: 39600 | Y20: 38700 | Z20: 36000 | AA20: 34000 | AB20: 34000 | AC20: SOVTRANS
N21: KIROVO-CHEPECK | O21: 1200 | P21: 68000 | Q21: 70000 | R21: 76000 | S21: 56100 | T21: 56100 | U21: SOVTRANS | W21: KIROVO-CHEPECK | X21: 61200 | Y21: 63000 | Z21: 68400 | AA21: 47685 | AB21: 47685 | AC21: SOVTRANS
N22: KRASNODAR | O22: 1300 | P22: 71000 | Q22: 84000 | R22: 85000 | S22: 83000 | T22: 71000 | U22: AGILITY | W22: KRASNODAR | X22: 63900 | Y22: 75600 | Z22: 76500 | AA22: 70550 | AB22: 63900 | AC22: AGILITY
N23: KRASNOYARSK | O23: 4200 | P23: 236000 | Q23: 275000 | R23: 230000 | S23: 243000 | T23: 230000 | U23: ASSTRA | W23: KRASNOYARSK | X23: 212400 | Y23: 247500 | Z23: 207000 | AA23: 206550 | AB23: 206550 | AC23: SOVTRANS
N24: KSTOVO | O24: 520 | P24: 33000 | Q24: 38000 | R24: 32000 | S24: 33000 | T24: 32000 | U24: ASSTRA | W24: KSTOVO | X24: =IFERROR(P24-P24*15%,0) -> 28050 | Y24: =IFERROR(Q24-Q24*15%,0) -> 32300 | Z24: =IFERROR(R24-R24*15%,0) -> 27200 | AA24: 28050 | AB24: 27200 | AC24: ASSTRA
N25: KURGAN | O25: 2100 | P25: 121000 | Q25: 140000 | R25: 160000 | S25: 132100 | T25: 121000 | U25: AGILITY | W25: KURGAN | X25: =IFERROR(P25-P25*10%,0) -> 108900 | Y25: =IFERROR(Q25-Q25*10%,0) -> 126000 | Z25: =IFERROR(R25-R25*10%,0) -> 144000 | AA25: 112285 | AB25: 108900 | AC25: AGILITY
N26: LIPECK | O26: 430 | P26: 27000 | Q26: 32000 | R26: 33000 | S26: 29000 | T26: 27000 | U26: AGILITY | W26: LIPECK | X26: 24300 | Y26: 28800 | Z26: 29700 | AA26: 24650 | AB26: 24300 | AC26: AGILITY
N27: MONCHEGORSK | O27: 1900 | P27: 146000 | Q27: 130000 | R27: 130000 | S27: 125000 | T27: 125000 | U27: SOVTRANS | W27: MONCHEGORSK | X27: 131400 | Y27: 117000 | Z27: 117000 | AA27: 106250 | AB27: 106250 | AC27: SOVTRANS
N28: MOSCOW | O28: 110 | P28: 16000 | Q28: 19000 | R28: 19000 | S28: 16500 | T28: 16000 | U28: AGILITY | W28: MOSCOW | X28: =IFERROR(P28-P28*15%,0) -> 13600 | Y28: =IFERROR(Q28-Q28*15%,0) -> 16150 | Z28: =IFERROR(R28-R28*15%,0) -> 16150 | AA28: 14025 | AB28: 13600 | AC28: AGILITY
N29: MOZYR, BY | O29: 720 | P29: 76000 | Q29: 36000 | R29: 31000 | S29: 35000 | T29: 31000 | U29: ASSTRA | W29: MOZYR, BY | X29: =IFERROR(P29-P29*10%,0) -> 68400 | Y29: =IFERROR(Q29-Q29*10%,0) -> 32400 | Z29: =IFERROR(R29-R29*10%,0) -> 27900 | AA29: 29750 | AB29: 27900 | AC29: ASSTRA
N30: NIZHNEKAMSK | O30: 1100 | P30: 68000 | Q30: 75000 | R30: 70000 | S30: 69300 | T30: 68000 | U30: AGILITY | W30: NIZHNEKAMSK | X30: =IFERROR(P30-P30*15%,0) -> 57800 | Y30: =IFERROR(Q30-Q30*15%,0) -> 63750 | Z30: =IFERROR(R30-R30*15%,0) -> 59500 | AA30: 58905 | AB30: 57800 | AC30: AGILITY
N31: NIZHNEVARTOVSK | O31: 3200 | P31: 255000 | Q31: 200000 | R31: 185000 | S31: 188000 | T31: 185000 | U31: ASSTRA | W31: NIZHNEVARTOVSK | X31: =IFERROR(P31-P31*10%,0) -> 229500 | Y31: =IFERROR(Q31-Q31*10%,0) -> 180000 | Z31: =IFERROR(R31-R31*10%,0) -> 166500 | AA31: 159800 | AB31: 159800 | AC31: SOVTRANS
N32: NIZHNY NOVGOROD | O32: 500 | P32: 33000 | Q32: 35000 | R32: 32000 | S32: 31000 | T32: 31000 | U32: SOVTRANS | W32: NIZHNY NOVGOROD | X32: =IFERROR(P32-P32*15%,0) -> 28050 | Y32: =IFERROR(Q32-Q32*15%,0) -> 29750 | Z32: =IFERROR(R32-R32*15%,0) -> 27200 | AA32: 26350 | AB32: 26350 | AC32: SOVTRANS
N33: NOVIY URENGOY | O33: 3800 | P33: 296000 | Q33: 250000 | R33: 215000 | S33: 263000 | T33: 215000 | U33: ASSTRA | W33: NOVIY URENGOY | X33: =IFERROR(P33-P33*10%,0) -> 266400 | Y33: =IFERROR(Q33-Q33*10%,0) -> 225000 | Z33: =IFERROR(R33-R33*10%,0) -> 193500 | AA33: 223550 | AB33: 193500 | AC33: ASSTRA
N34: NOVOMOSKOVSK | O34: 180 | P34: 16000 | Q34: 23000 | R34: 26000 | S34: 19500 | T34: 16000 | U34: AGILITY | W34: NOVOMOSKOVSK | X34: =IFERROR(P34-P34*15%,0) -> 13600 | Y34: =IFERROR(Q34-Q34*15%,0) -> 19550 | Z34: =IFERROR(R34-R34*15%,0) -> 22100 | AA34: 16575 | AB34: 13600 | AC34: AGILITY
N35: NOVOPOLOCK. BY | O35: 640 | P35: 55000 | Q35: 35000 | R35: 37000 | S35: 34000 | T35: 34000 | U35: SOVTRANS | W35: NOVOPOLOCK. BY | X35: =IFERROR(P35-P35*10%,0) -> 49500 | Y35: =IFERROR(Q35-Q35*10%,0) -> 31500 | Z35: =IFERROR(R35-R35*10%,0) -> 33300 | AA35: 28900 | AB35: 28900 | AC35: SOVTRANS
N36: NOVOSHAHTINSK | O36: 980 | P36: 52000 | Q36: 67000 | R36: 78000 | S36: 65000 | T36: 52000 | U36: AGILITY | W36: NOVOSHAHTINSK | X36: 46800 | Y36: 60300 | Z36: 70200 | AA36: 55250 | AB36: 46800 | AC36: AGILITY
N37: OMSK | O37: 2800 | P37: 156000 | Q37: 175000 | R37: 140000 | S37: 162750 | T37: 140000 | U37: ASSTRA | W37: OMSK | X37: =IFERROR(P37-P37*10%,0) -> 140400 | Y37: 157500 | Z37: 126000 | AA37: 138337.5 | AB37: 126000 | AC37: ASSTRA
N38: ORENBURG | O38: 1500 | P38: 82000 | Q38: 100000 | R38: 103000 | S38: 94600 | T38: 82000 | U38: AGILITY | W38: ORENBURG | X38: =IFERROR(P38-P38*10%,0) -> 73800 | Y38: 90000 | Z38: 92700 | AA38: 80410 | AB38: 73800 | AC38: AGILITY
N39: ORSK | O39: 1800 | P39: 99000 | Q39: 112000 | R39: 105000 | S39: 105000 | T39: 99000 | U39: AGILITY | W39: ORSK | X39: 89100 | Y39: 100800 | Z39: 94500 | AA39: 89250 | AB39: 89100 | AC39: AGILITY
N40: PAVLODAR | O40: 3200 | P40: 999999 | Q40: 200000 | R40: 180000 | S40: 172000 | T40: 172000 | U40: SOVTRANS | W40: PAVLODAR | X40: 899999.1 | Y40: 180000 | Z40: 162000 | AA40: 146200 | AB40: 146200 | AC40: SOVTRANS
N41: PERM | O41: 1500 | P41: 85000 | Q41: 95000 | R41: 100000 | S41: 91350 | T41: 85000 | U41: AGILITY | W41: PERM | X41: =IFERROR(P41-P41*15%,0) -> 72250 | Y41: =IFERROR(Q41-Q41*15%,0) -> 80750 | Z41: =IFERROR(R41-R41*15%,0) -> 85000 | AA41: 77647.5 | AB41: 72250 | AC41: AGILITY
N42: PODOLSK | O42: 68 | P42: 16000 | Q42: 19000 | R42: 21000 | S42: 14700 | T42: 14700 | U42: SOVTRANS | W42: PODOLSK | X42: =IFERROR(P42-P42*15%,0) -> 13600 | Y42: 16150 | Z42: 17850 | AA42: 12495 | AB42: 12495 | AC42: SOVTRANS
N43: ROSTOV-NA-DONU | O43: 1000 | P43: 55000 | Q43: 70000 | R43: 75000 | S43: 66100 | T43: 55000 | U43: AGILITY | W43: ROSTOV-NA-DONU | X43: =IFERROR(P43-P43*10%,0) -> 49500 | Y43: =IFERROR(Q43-Q43*10%,0) -> 63000 | Z43: =IFERROR(R43-R43*10%,0) -> 67500 | AA43: 56185 | AB43: 49500 | AC43: AGILITY
N44: RYAZAN | O44: 210 | P44: 19000 | Q44: 23000 | R44: 26000 | S44: 20500 | T44: 19000 | U44: AGILITY | W44: RYAZAN | X44: 17100 | Y44: 20700 | Z44: 23400 | AA44: 17425 | AB44: 17100 | AC44: AGILITY
N45: SAMARA | O45: 1100 | P45: 60000 | Q45: 70000 | R45: 68000 | S45: 66000 | T45: 60000 | U45: AGILITY | W45: SAMARA | X45: 54000 | Y45: 63000 | Z45: 61200 | AA45: 56100 | AB45: 54000 | AC45: AGILITY
N46: SANKT-PETERBURG | O46: 820 | P46: 38000 | Q46: 39000 | R46: 999999 | S46: 39990 | T46: 38000 | U46: AGILITY | W46: SANKT-PETERBURG | X46: =IFERROR(P46-P46*15%,0) -> 32300 | Y46: =IFERROR(Q46-Q46*15%,0) -> 33150 | Z46: =IFERROR(R46-R46*15%,0) -> 849999.15 | AA46: 33991.5 | AB46: 32300 | AC46: AGILITY
N47: SARATOV | O47: 870 | P47: 38000 | Q47: 60000 | R47: 65000 | S47: 55100 | T47: 38000 | U47: AGILITY | W47: SARATOV | X47: =IFERROR(P47-P47*10%,0) -> 34200 | Y47: =IFERROR(Q47-Q47*10%,0) -> 54000 | Z47: =IFERROR(R47-R47*10%,0) -> 58500 | AA47: 46835 | AB47: 34200 | AC47: AGILITY
N48: SALAVAT | O48: 1500 | P48: 90000 | Q48: 93000 | R48: 98000 | S48: 89250 | T48: 89250 | U48: SOVTRANS | W48: SALAVAT | X48: 81000 | Y48: 83700 | Z48: 88200 | AA48: 75862.5 | AB48: 75862.5 | AC48: SOVTRANS
N49: SOFRINO | O49: 160 | P49: 19000 | Q49: 22000 | R49: 25000 | S49: 18500 | T49: 18500 | U49: SOVTRANS | W49: SOFRINO | X49: 17100 | Y49: 19800 | Z49: 22500 | AA49: 15725 | AB49: 15725 | AC49: SOVTRANS
N50: SYZRAN | O50: 910 | P50: 52000 | Q50: 65000 | R50: 69000 | S50: 65000 | T50: 52000 | U50: AGILITY | W50: SYZRAN | X50: 46800 | Y50: 58500 | Z50: 62100 | AA50: 55250 | AB50: 46800 | AC50: AGILITY
N51: TAGANROG | O51: 1100 | P51: 60000 | Q51: 74000 | R51: 78000 | S51: 74000 | T51: 60000 | U51: AGILITY | W51: TAGANROG | X51: 54000 | Y51: 66600 | Z51: 70200 | AA51: 62900 | AB51: 54000 | AC51: AGILITY
N52: TULA | O52: 95 | P52: 16000 | Q52: 22000 | R52: 25000 | S52: 18500 | T52: 16000 | U52: AGILITY | W52: TULA | X52: =IFERROR(P52-P52*10%,0) -> 14400 | Y52: =IFERROR(Q52-Q52*10%,0) -> 19800 | Z52: =IFERROR(R52-R52*10%,0) -> 22500 | AA52: 15725 | AB52: 14400 | AC52: AGILITY
N53: TUMEN | O53: 2200 | P53: 132000 | Q53: 142000 | R53: 140000 | S53: 142000 | T53: 132000 | U53: AGILITY | W53: TUMEN | X53: 118800 | Y53: 127800 | Z53: 126000 | AA53: 120700 | AB53: 118800 | AC53: AGILITY
N54: ULYANOVSK | O54: 890 | P54: 38000 | Q54: 65000 | R54: 63000 | S54: 61000 | T54: 38000 | U54: AGILITY | W54: ULYANOVSK | X54: 34200 | Y54: 58500 | Z54: 56700 | AA54: 51850 | AB54: 34200 | AC54: AGILITY
N55: UREN | O55: 700 | P55: 44000 | Q55: 49000 | R55: 55000 | S55: 46000 | T55: 44000 | U55: AGILITY | W55: UREN | X55: =IFERROR(P55-P55*15%,0) -> 37400 | Y55: =IFERROR(Q55-Q55*15%,0) -> 41650 | Z55: =IFERROR(R55-R55*15%,0) -> 46750 | AA55: 39100 | AB55: 37400 | AC55: AGILITY
N56: UST-KUT (IRKUTSK) | O56: 5300 | P56: 294000 | Q56: 320000 | R56: 320000 | S56: 340000 | T56: 294000 | U56: AGILITY | W56: UST-KUT (IRKUTSK) | X56: =IFERROR(P56-P56*10%,0) -> 264600 | Y56: =IFERROR(Q56-Q56*10%,0) -> 288000 | Z56: =IFERROR(R56-R56*10%,0) -> 288000 | AA56: 289000 | AB56: 264600 | AC56: AGILITY
N57: VELIKI NOVGOROD | O57: 690 | P57: 38000 | Q57: 37000 | R57: 38000 | S57: 36500 | T57: 36500 | U57: SOVTRANS | W57: VELIKI NOVGOROD | X57: 34200 | Y57: 33300 | Z57: 34200 | AA57: 31025 | AB57: 31025 | AC57: SOVTRANS
N58: VOLGOGRAD | O58: 930 | P58: 52000 | Q58: 65000 | R58: 65000 | S58: 56000 | T58: 52000 | U58: AGILITY | W58: VOLGOGRAD | X58: =IFERROR(P58-P58*15%,0) -> 44200 | Y58: =IFERROR(Q58-Q58*15%,0) -> 55250 | Z58: =IFERROR(R58-R58*15%,0) -> 55250 | AA58: 47600 | AB58: 44200 | AC58: AGILITY
N59: VORONEZH | O59: 490 | P59: 33000 | Q59: 35000 | R59: 35000 | S59: 29000 | T59: 29000 | U59: SOVTRANS | W59: VORONEZH | X59: =IFERROR(P59-P59*15%,0) -> 28050 | Y59: 29750 | Z59: 29750 | AA59: 24650 | AB59: 24650 | AC59: SOVTRANS
N60: VYNGAPUR | O60: 3400 | P60: 270000 | Q60: 250000 | R60: 230000 | S60: 247000 | T60: 230000 | U60: ASSTRA | W60: VYNGAPUR | X60: 229500 | Y60: 212500 | Z60: 195500 | AA60: 209950 | AB60: 195500 | AC60: ASSTRA
N61: YAROSLAVL | O61: 380 | P61: 33000 | Q61: 28000 | R61: 26000 | S61: 27000 | T61: 26000 | U61: ASSTRA | W61: YAROSLAVL | X61: 28050 | Y61: 23800 | Z61: 22100 | AA61: 22950 | AB61: 22100 | AC61: ASSTRA
N62: YNAO | O62: 4000 | P62: 273000 | Q62: 250000 | R62: 230000 | S62: 999999 | T62: 230000 | U62: ASSTRA | W62: YNAO | X62: 232050 | Y62: 212500 | Z62: 195500 | AA62: 849999.15 | AB62: 195500 | AC62: ASSTRA
N63: ФУРА 20т | W63: (СТАВКА - НДС) + ЗАПАС

Sheet Small Trucks
A1: Estimation Tool for transportations round Russian Federation from Serpukhov
A3: Please choose the correct conditions for transportation and fill in the green cells :
A4: Destination city | B4: VORONEZH | I4: ГОРОД | J4: КМ | K4: AGILITY | L4: DACHSER | M4: ASSTRA | N4: SOVTRANS | O4: MIN | P4: Перевозчик | R4: ГОРОД | S4: КМ | T4: AGILITY | U4: DACHSER | V4: ASSTRA | W4: SOVTRANS | X4: MIN | Y4: Перевозчик | AA4: ГОРОД | AB4: КМ | AC4: AGILITY | AD4: DACHSER | AE4: ASSTRA | AF4: SOVTRANS | AG4: MIN | AH4: Перевозчик | AK4: (СТАВКА - НДС) + ЗАПАС 10ТОННИК | AS4: (СТАВКА - НДС) + ЗАПАС 10ТОННИК | BA4: (СТАВКА - НДС) + ЗАПАС 3ТОННИК (СБОРКА) | BG4: MOZYR, BY
A5: Transportation time, days | B5: =ROUNDUP(VLOOKUP(B4,I5:J64,2,0)/500,0) -> 1 | I5: ACTAU | J5: 2600 | K5: 999999 | L5: 200000 | M5: 165000 | N5: 999999 | O5: =MIN(K5:N5) -> 165000 | P5: =IF(O5=K5,$K$4,IF(O5=L5,$L$4,IF(O5=M5,$M$4,IF(O5=N5,$N$4,0)))) -> ASSTRA | R5: ACTAU | S5: 2600 | T5: 999999 | U5: 180000 | V5: 160000 | W5: 999999 | X5: =MIN(T5:W5) -> 160000 | Y5: =IF(X5=T5,$T$4,IF(X5=U5,$U$4,IF(X5=V5,$V$4,IF(X5=W5,$W$4,0)))) -> ASSTRA | AA5: ACTAU | AB5: 2600 | AC5: 999999 | AD5: 155000 | AE5: 999999 | AF5: 999999 | AG5: =MIN(AC5:AF5) -> 155000 | AH5: =IF(AG5=AC5,$AC$4,IF(AG5=AD5,$AD$4,IF(AG5=AE5,$AE$4,IF(AG5=AF5,$AF$4,0)))) -> DACHSER | AJ5: ACTAU | AK5: =IFERROR(K5-K5*10%,0) -> 899999.1 | AL5: 180000 | AM5: 148500 | AN5: 899999.1 | AO5: =MIN(AK5:AN5) -> 148500 | AP5: =IF(AO5=AK5,$K$4,IF(AO5=AL5,$L$4,IF(AO5=AM5,$M$4,IF(AO5=AN5,$N$4,0)))) -> ASSTRA | AR5: ACTAU | AS5: =IFERROR(T5-T5*10%,0) -> 899999.1 | AT5: 162000 | AU5: 144000 | AV5: 899999.1 | AW5: =MIN(AS5:AV5) -> 144000 | AX5: =IF(AW5=AS5,$T$4,IF(AW5=AT5,$U$4,IF(AW5=AU5,$V$4,IF(AW5=AV5,$W$4,0)))) -> ASSTRA | AZ5: ACTAU | BA5: =IFERROR(AC5-AC5*10%,0) -> 899999.1 | BB5: 139500 | BC5: 899999.1 | BD5: 899999.1 | BE5: =MIN(BA5:BD5) -> 139500 | BF5: =IF(BE5=BA5,$AC$4,IF(BE5=BB5,$AD$4,IF(BE5=BC5,$AE$4,IF(BE5=BD5,$AF$4,0)))) -> DACHSER | BG5: NOVOPOLOCK. BY
I6: ATYRAU | J6: 1700 | K6: 999999 | L6: 145000 | M6: 125000 | N6: 999999 | O6: 125000 | P6: =IF(O6=K6,$K$4,IF(O6=L6,$L$4,IF(O6=M6,$M$4,IF(O6=N6,$N$4,0)))) -> ASSTRA | R6: ATYRAU | S6: 1700 | T6: 999999 | U6: 127000 | V6: 105000 | W6: 999999 | X6: 105000 | Y6: =IF(X6=T6,$T$4,IF(X6=U6,$U$4,IF(X6=V6,$V$4,IF(X6=W6,$W$4,0)))) -> ASSTRA | AA6: ATYRAU | AB6: 1700 | AC6: 999999 | AD6: 115000 | AE6: 999999 | AF6: 999999 | AG6: 115000 | AH6: =IF(AG6=AC6,$AC$4,IF(AG6=AD6,$AD$4,IF(AG6=AE6,$AE$4,IF(AG6=AF6,$AF$4,0)))) -> DACHSER | AJ6: ATYRAU | AK6: 899999.1 | AL6: 130500 | AM6: 112500 | AN6: 899999.1 | AO6: =MIN(AK6:AN6) -> 112500 | AP6: =IF(AO6=AK6,$K$4,IF(AO6=AL6,$L$4,IF(AO6=AM6,$M$4,IF(AO6=AN6,$N$4,0)))) -> ASSTRA | AR6: ATYRAU | AS6: 899999.1 | AT6: 114300 | AU6: 94500 | AV6: 899999.1 | AW6: =MIN(AS6:AV6) -> 94500 | AX6: ASSTRA | AZ6: ATYRAU | BA6: 899999.1 | BB6: 103500 | BC6: 899999.1 | BD6: 899999.1 | BE6: =MIN(BA6:BD6) -> 103500 | BF6: =IF(BE6=BA6,$AC$4,IF(BE6=BB6,$AD$4,IF(BE6=BC6,$AE$4,IF(BE6=BD6,$AF$4,0)))) -> DACHSER | BG6: ATYRAU
I7: ACHINSK | J7: 4100 | K7: 999999 | L7: 225000 | M7: 180000 | N7: 206350 | O7: 180000 | P7: ASSTRA | R7: ACHINSK | S7: 4100 | T7: 999999 | U7: 185000 | V7: 180000 | W7: 169080 | X7: 169080 | Y7: SOVTRANS | AA7: ACHINSK | AB7: 4100 | AC7: 999999 | AD7: 170000 | AE7: 999999 | AF7: 148290 | AG7: 148290 | AH7: SOVTRANS | AJ7: ACHINSK | AK7: 899999.1 | AL7: 202500 | AM7: 162000 | AN7: 185715 | AO7: =MIN(AK7:AN7) -> 162000 | AP7: ASSTRA | AR7: ACHINSK | AS7: 899999.1 | AT7: 166500 | AU7: 162000 | AV7: 152172 | AW7: 152172 | AX7: SOVTRANS | AZ7: ACHINSK | BA7: 899999.1 | BB7: 153000 | BC7: 899999.1 | BD7: 133461 | BE7: 133461 | BF7: SOVTRANS | BG7: ACTAU
A8: Details: | I8: ANGARSK | J8: 5300 | K8: 999999 | L8: 290000 | M8: 367000 | N8: 251050 | O8: 251050 | P8: SOVTRANS | R8: ANGARSK | S8: 5300 | T8: 999999 | U8: 240000 | V8: 367000 | W8: 202450 | X8: 202450 | Y8: SOVTRANS | AA8: ANGARSK | AB8: 5300 | AC8: 999999 | AD8: 215000 | AE8: 999999 | AF8: 176300 | AG8: 176300 | AH8: SOVTRANS | AJ8: ANGARSK | AK8: 899999.1 | AL8: 261000 | AM8: 330300 | AN8: 225945 | AO8: 225945 | AP8: SOVTRANS | AR8: ANGARSK | AS8: 899999.1 | AT8: 216000 | AU8: 330300 | AV8: 182205 | AW8: 182205 | AX8: SOVTRANS | AZ8: ANGARSK | BA8: 899999.1 | BB8: 193500 | BC8: 899999.1 | BD8: 158670 | BE8: 158670 | BF8: SOVTRANS
A9: COO, once for an ICO | B9: =IF(ISNUMBER(MATCH($B$4,$BG$4:$BG$7,0)),5900,0) -> 0 | I9: ASTRAKHAN | J9: 1400 | K9: 999999 | L9: 77000 | M9: 56000 | N9: 72700 | O9: 56000 | P9: ASSTRA | R9: ASTRAKHAN | S9: 1400 | T9: 999999 | U9: 65000 | V9: 56000 | W9: 59760 | X9: 56000 | Y9: ASSTRA | AA9: ASTRAKHAN | AB9: 1400 | AC9: 999999 | AD9: 58000 | AE9: 999999 | AF9: 52380 | AG9: 52380 | AH9: SOVTRANS | AJ9: ASTRAKHAN | AK9: 899999.1 | AL9: 69300 | AM9: 50400 | AN9: 65430 | AO9: 50400 | AP9: ASSTRA | AR9: ASTRAKHAN | AS9: 899999.1 | AT9: 58500 | AU9: 50400 | AV9: 53784 | AW9: 50400 | AX9: ASSTRA | AZ9: ASTRAKHAN | BA9: 899999.1 | BB9: 52200 | BC9: 899999.1 | BD9: 47142 | BE9: 47142 | BF9: SOVTRANS
A10: InC from FSTEC of Russia, once for an ICO | B10: =IF(ISNUMBER(MATCH($B$4,$BG$4:$BG$7,0)),8000,0) -> 0 | I10: BALASHIHA | J10: 120 | K10: 999999 | L10: 17000 | M10: 18000 | N10: 14960 | O10: 14960 | P10: SOVTRANS | R10: BALASHIHA | S10: 120 | T10: 999999 | U10: 15000 | V10: 18000 | W10: 11968 | X10: 11968 | Y10: SOVTRANS | AA10: BALASHIHA | AB10: 120 | AC10: 999999 | AD10: 13000 | AE10: 13000 | AF10: 9208 | AG10: 9208 | AH10: SOVTRANS | AJ10: BALASHIHA | AK10: =IFERROR(L10-L10*15%,0) -> 14450 | AL10: =IFERROR(M10-M10*15%,0) -> 15300 | AM10: =IFERROR(N10-N10*15%,0) -> 12716 | AN10: =IFERROR(O10-O10*15%,0) -> 12716 | AO10: 12716 | AP10: ASSTRA | AR10: BALASHIHA | AS10: =IFERROR(T10-T10*15%,0) -> 849999.15 | AT10: =IFERROR(U10-U10*15%,0) -> 12750 | AU10: =IFERROR(V10-V10*15%,0) -> 15300 | AV10: =IFERROR(W10-W10*15%,0) -> 10172.8 | AW10: 10172.8 | AX10: SOVTRANS | AZ10: BALASHIHA | BA10: =IFERROR(AC10-AC10*15%,0) -> 849999.15 | BB10: =IFERROR(AD10-AD10*15%,0) -> 11050 | BC10: =IFERROR(AE10-AE10*15%,0) -> 11050 | BD10: =IFERROR(AF10-AF10*15%,0) -> 7826.8 | BE10: =MIN(BA10:BD10) -> 7826.8 | BF10: SOVTRANS
A11: Total freight & logistics costs (to be added in Sulprice) | B11: =SUM(B9:B10) -> 0 | I11: BLAGOVESHSCENSK, AMUR | J11: 7900 | K11: 999999 | L11: 450000 | M11: 395000 | N11: 419900 | O11: 395000 | P11: ASSTRA | R11: BLAGOVESHSCENSK, AMUR | S11: 7900 | T11: 999999 | U11: 390000 | V11: 395000 | W11: 338400 | X11: 338400 | Y11: SOVTRANS | AA11: BLAGOVESHSCENSK, AMUR | AB11: 7900 | AC11: 999999 | AD11: 360000 | AE11: 315000 | AF11: 297200 | AG11: 297200 | AH11: SOVTRANS | AJ11: BLAGOVESHSCENSK, AMUR | AK11: =IFERROR(L11-L11*10%,0) -> 405000 | AL11: 355500 | AM11: 377910 | AN11: 355500 | AO11: 355500 | AP11: DACHSER | AR11: BLAGOVESHSCENSK, AMUR | AS11: =IFERROR(T11-T11*10%,0) -> 899999.1 | AT11: 351000 | AU11: 355500 | AV11: 304560 | AW11: 304560 | AX11: SOVTRANS | AZ11: BLAGOVESHSCENSK, AMUR | BA11: =IFERROR(AC11-AC11*10%,0) -> 899999.1 | BB11: 324000 | BC11: 283500 | BD11: 267480 | BE11: 267480 | BF11: SOVTRANS
A12: Details: | B12: 🚚 Truck 10t | C12: 🚚 Truck 5t | D12: 🚚 Truck 3t | F12: 🚚 Truck 10t | I12: BLAGOVESHSCENSK, BASH | J12: 1400 | K12: 999999 | L12: 90000 | M12: 73000 | N12: 73000 | O12: 73000 | P12: ASSTRA | R12: BLAGOVESHSCENSK, BASH | S12: 1400 | T12: 999999 | U12: 78000 | V12: 73000 | W12: 57600 | X12: 57600 | Y12: SOVTRANS | AA12: BLAGOVESHSCENSK, BASH | AB12: 1400 | AC12: 999999 | AD12: 62000 | AE12: 58000 | AF12: 50200 | AG12: 50200 | AH12: SOVTRANS | AJ12: BLAGOVESHSCENSK, BASH | AK12: 81000 | AL12: 65700 | AM12: 65700 | AN12: 65700 | AO12: 65700 | AP12: DACHSER | AR12: BLAGOVESHSCENSK, BASH | AS12: 899999.1 | AT12: 70200 | AU12: 65700 | AV12: 51840 | AW12: 51840 | AX12: SOVTRANS | AZ12: BLAGOVESHSCENSK, BASH | BA12: 899999.1 | BB12: 55800 | BC12: 52200 | BD12: 45180 | BE12: 45180 | BF12: SOVTRANS
A13: Total freight & logistics costs | B13: =IF(ISNA(VLOOKUP(B4,BG4:BG7,1,0))=TRUE,VLOOKUP(B4,AJ:AP,6,0),SUM(VLOOKUP(B4,AJ:AP,6,0),B11)) -> 22500 | C13: =IF(ISNA(VLOOKUP(B4,BG4:BG7,1,0))=TRUE,VLOOKUP(B4,AR:AX,6,0),SUM(VLOOKUP(B4,AR:AX,6,0),B11)) -> 18612 | D13: =IF(ISNA(VLOOKUP(B4,BG4:BG7,1,0))=TRUE,VLOOKUP(B4,AZ:BF,6,0),SUM(VLOOKUP(B4,AZ:BF,6,0),B11)) -> 16506 | F13: =VLOOKUP(B4,I:P,8,0) -> ASSTRA | I13: BORISOGLEBSK | J13: 580 | K13: 999999 | L13: 38000 | M13: 40000 | N13: 37000 | O13: 37000 | P13: SOVTRANS | R13: BORISOGLEBSK | S13: 580 | T13: 999999 | U13: 32000 | V13: 40000 | W13: 31200 | X13: 31200 | Y13: SOVTRANS | AA13: BORISOGLEBSK | AB13: 580 | AC13: 999999 | AD13: 29000 | AE13: 30000 | AF13: 26600 | AG13: 26600 | AH13: SOVTRANS | AJ13: BORISOGLEBSK | AK13: 34200 | AL13: 36000 | AM13: 33300 | AN13: 33300 | AO13: 33300 | AP13: ASSTRA | AR13: BORISOGLEBSK | AS13: 899999.1 | AT13: 28800 | AU13: 36000 | AV13: 28080 | AW13: 28080 | AX13: SOVTRANS | AZ13: BORISOGLEBSK | BA13: 899999.1 | BB13: 26100 | BC13: 27000 | BD13: 23940 | BE13: 23940 | BF13: SOVTRANS
I14: BRATSK | J14: 4900 | K14: 999999 | L14: 285000 | M14: 250000 | N14: 263200 | O14: 250000 | P14: ASSTRA | R14: BRATSK | S14: 4900 | T14: 999999 | U14: 237000 | V14: 250000 | W14: 212300 | X14: 212300 | Y14: SOVTRANS | AA14: BRATSK | AB14: 4900 | AC14: 999999 | AD14: 220000 | AE14: 999999 | AF14: 184500 | AG14: 184500 | AH14: SOVTRANS | AJ14: BRATSK | AK14: 256500 | AL14: 225000 | AM14: 236880 | AN14: 225000 | AO14: 225000 | AP14: DACHSER | AR14: BRATSK | AS14: 899999.1 | AT14: 213300 | AU14: 225000 | AV14: 191070 | AW14: 191070 | AX14: SOVTRANS | AZ14: BRATSK | BA14: 899999.1 | BB14: 198000 | BC14: 899999.1 | BD14: 166050 | BE14: 166050 | BF14: SOVTRANS
F15: 🚚 Truck 5t | I15: DOROGOBUZH | J15: 350 | K15: 999999 | L15: 26000 | M15: 35000 | N15: 24900 | O15: 24900 | P15: SOVTRANS | R15: DOROGOBUZH | S15: 350 | T15: 999999 | U15: 24000 | V15: 35000 | W15: 20950 | X15: 20950 | Y15: SOVTRANS | AA15: DOROGOBUZH | AB15: 350 | AC15: 999999 | AD15: 22000 | AE15: 999999 | AF15: 18990 | AG15: 18990 | AH15: SOVTRANS | AJ15: DOROGOBUZH | AK15: 23400 | AL15: 31500 | AM15: 22410 | AN15: 22410 | AO15: 22410 | AP15: ASSTRA | AR15: DOROGOBUZH | AS15: 899999.1 | AT15: 21600 | AU15: 31500 | AV15: 18855 | AW15: 18855 | AX15: SOVTRANS | AZ15: DOROGOBUZH | BA15: 899999.1 | BB15: 19800 | BC15: 899999.1 | BD15: 17091 | BE15: 17091 | BF15: SOVTRANS
F16: =VLOOKUP(B4,R:Y,8,0) -> SOVTRANS | I16: DZERZHINSK | J16: 480 | K16: 999999 | L16: 32000 | M16: 25000 | N16: 25800 | O16: 25000 | P16: ASSTRA | R16: DZERZHINSK | S16: 480 | T16: 999999 | U16: 28000 | V16: 25000 | W16: 20140 | X16: 20140 | Y16: SOVTRANS | AA16: DZERZHINSK | AB16: 480 | AC16: 999999 | AD16: 25000 | AE16: 15000 | AF16: 18400 | AG16: 15000 | AH16: ASSTRA | AJ16: DZERZHINSK | AK16: =IFERROR(L16-L16*15%,0) -> 27200 | AL16: 21250 | AM16: 21930 | AN16: 21250 | AO16: 21250 | AP16: DACHSER | AR16: DZERZHINSK | AS16: =IFERROR(T16-T16*15%,0) -> 849999.15 | AT16: 23800 | AU16: 21250 | AV16: 17119 | AW16: 17119 | AX16: SOVTRANS | AZ16: DZERZHINSK | BA16: =IFERROR(AC16-AC16*15%,0) -> 849999.15 | BB16: 21250 | BC16: 12750 | BD16: 15640 | BE16: 12750 | BF16: ASSTRA
I17: GAGARIN | J17: 200 | K17: 999999 | L17: 21000 | M17: 35000 | N17: 20900 | O17: 20900 | P17: SOVTRANS | R17: GAGARIN | S17: 200 | T17: 999999 | U17: 18000 | V17: 35000 | W17: 16960 | X17: 16960 | Y17: SOVTRANS | AA17: GAGARIN | AB17: 200 | AC17: 999999 | AD17: 16000 | AE17: 999999 | AF17: 14980 | AG17: 14980 | AH17: SOVTRANS | AJ17: GAGARIN | AK17: 17850 | AL17: 29750 | AM17: 17765 | AN17: 17765 | AO17: 17765 | AP17: ASSTRA | AR17: GAGARIN | AS17: 849999.15 | AT17: 15300 | AU17: 29750 | AV17: 14416 | AW17: 14416 | AX17: SOVTRANS | AZ17: GAGARIN | BA17: 849999.15 | BB17: 13600 | BC17: 849999.15 | BD17: 12733 | BE17: 12733 | BF17: SOVTRANS
F18: 🚚 Truck 3t | I18: HANTI-MANSIISK | J18: 2700 | K18: 999999 | L18: 160000 | M18: 999999 | N18: 190000 | O18: 160000 | P18: DACHSER | R18: HANTI-MANSIISK | S18: 2700 | T18: 999999 | U18: 150000 | V18: 999999 | W18: 156000 | X18: 150000 | Y18: DACHSER | AA18: HANTI-MANSIISK | AB18: 2700 | AC18: 999999 | AD18: 130000 | AE18: 999999 | AF18: 128000 | AG18: 128000 | AH18: SOVTRANS | AJ18: HANTI-MANSIISK | AK18: 136000 | AL18: 849999.15 | AM18: 161500 | AN18: 136000 | AO18: 136000 | AP18: AGILITY | AR18: HANTI-MANSIISK | AS18: 849999.15 | AT18: 127500 | AU18: 849999.15 | AV18: 132600 | AW18: 127500 | AX18: DACHSER | AZ18: HANTI-MANSIISK | BA18: 849999.15 | BB18: 110500 | BC18: 849999.15 | BD18: 108800 | BE18: 108800 | BF18: SOVTRANS
F19: =VLOOKUP(B4,AA:AH,8,0) -> SOVTRANS | I19: KALUGA | J19: 110 | K19: 999999 | L19: 18000 | M19: 17000 | N19: 15975 | O19: =MIN(K19:N19) -> 15975 | P19: =IF(O19=K19,$K$4,IF(O19=L19,$L$4,IF(O19=M19,$M$4,IF(O19=N19,$N$4,0)))) -> SOVTRANS | R19: KALUGA | S19: 110 | T19: 999999 | U19: 15000 | V19: 17000 | W19: 12900 | X19: =MIN(T19:W19) -> 12900 | Y19: =IF(X19=T19,$T$4,IF(X19=U19,$U$4,IF(X19=V19,$V$4,IF(X19=W19,$W$4,0)))) -> SOVTRANS | AA19: KALUGA | AB19: 110 | AC19: 999999 | AD19: 13000 | AE19: 12000 | AF19: 11825 | AG19: =MIN(AC19:AF19) -> 11825 | AH19: =IF(AG19=AC19,$AC$4,IF(AG19=AD19,$AD$4,IF(AG19=AE19,$AE$4,IF(AG19=AF19,$AF$4,0)))) -> SOVTRANS | AJ19: KALUGA | AK19: 15300 | AL19: 14450 | AM19: 13578.75 | AN19: 13578.75 | AO19: =MIN(AK19:AN19) -> 13578.75 | AP19: ASSTRA | AR19: KALUGA | AS19: 849999.15 | AT19: 12750 | AU19: 14450 | AV19: 10965 | AW19: =MIN(AS19:AV19) -> 10965 | AX19: SOVTRANS | AZ19: KALUGA | BA19: 849999.15 | BB19: 11050 | BC19: 10200 | BD19: 10051.25 | BE19: =MIN(BA19:BD19) -> 10051.25 | BF19: SOVTRANS
I20: KAZAN | J20: 910 | K20: 999999 | L20: 50000 | M20: 38000 | N20: 52300 | O20: 38000 | P20: ASSTRA | R20: KAZAN | S20: 910 | T20: 999999 | U20: 44000 | V20: 38000 | W20: 42440 | X20: 38000 | Y20: ASSTRA | AA20: KAZAN | AB20: 910 | AC20: 999999 | AD20: 39000 | AE20: 30000 | AF20: 37220 | AG20: 30000 | AH20: ASSTRA | AJ20: KAZAN | AK20: 42500 | AL20: 32300 | AM20: 44455 | AN20: 32300 | AO20: 32300 | AP20: DACHSER | AR20: KAZAN | AS20: 849999.15 | AT20: 37400 | AU20: 32300 | AV20: 36074 | AW20: 32300 | AX20: ASSTRA | AZ20: KAZAN | BA20: 849999.15 | BB20: 33150 | BC20: 25500 | BD20: 31637 | BE20: 25500 | BF20: ASSTRA
I21: KEMEROVO | J21: 3700 | K21: 999999 | L21: 220000 | M21: 160000 | N21: 179200 | O21: 160000 | P21: ASSTRA | R21: KEMEROVO | S21: 3700 | T21: 999999 | U21: 180000 | V21: 160000 | W21: 144640 | X21: 144640 | Y21: SOVTRANS | AA21: KEMEROVO | AB21: 3700 | AC21: 999999 | AD21: 165000 | AE21: 999999 | AF21: 125820 | AG21: 125820 | AH21: SOVTRANS | AJ21: KEMEROVO | AK21: =IFERROR(L21-L21*10%,0) -> 198000 | AL21: =IFERROR(M21-M21*10%,0) -> 144000 | AM21: =IFERROR(N21-N21*10%,0) -> 161280 | AN21: =IFERROR(O21-O21*10%,0) -> 144000 | AO21: 144000 | AP21: DACHSER | AR21: KEMEROVO | AS21: =IFERROR(T21-T21*10%,0) -> 899999.1 | AT21: =IFERROR(U21-U21*10%,0) -> 162000 | AU21: =IFERROR(V21-V21*10%,0) -> 144000 | AV21: =IFERROR(W21-W21*10%,0) -> 130176 | AW21: 130176 | AX21: SOVTRANS | AZ21: KEMEROVO | BA21: =IFERROR(AC21-AC21*10%,0) -> 899999.1 | BB21: =IFERROR(AD21-AD21*10%,0) -> 148500 | BC21: =IFERROR(AE21-AE21*10%,0) -> 899999.1 | BD21: =IFERROR(AF21-AF21*10%,0) -> 113238 | BE21: 113238 | BF21: SOVTRANS
I22: KIRISHI | J22: 750 | K22: 999999 | L22: 37000 | M22: 35000 | N22: 35450 | O22: 35000 | P22: ASSTRA | R22: KIRISHI | S22: 750 | T22: 999999 | U22: 32000 | V22: 35000 | W22: 29160 | X22: 29160 | Y22: SOVTRANS | AA22: KIRISHI | AB22: 750 | AC22: 999999 | AD22: 29000 | AE22: 999999 | AF22: 26830 | AG22: 26830 | AH22: SOVTRANS | AJ22: KIRISHI | AK22: =IFERROR(L22-L22*10%,0) -> 33300 | AL22: 31500 | AM22: 31905 | AN22: 31500 | AO22: 31500 | AP22: DACHSER | AR22: KIRISHI | AS22: 899999.1 | AT22: 28800 | AU22: 31500 | AV22: 26244 | AW22: 26244 | AX22: SOVTRANS | AZ22: KIRISHI | BA22: =IFERROR(AC22-AC22*10%,0) -> 899999.1 | BB22: 26100 | BC22: 899999.1 | BD22: 24147 | BE22: 24147 | BF22: SOVTRANS
I23: KIROVO-CHEPECK | J23: 1200 | K23: 999999 | L23: 60000 | M23: 49000 | N23: 48050 | O23: 48050 | P23: SOVTRANS | R23: KIROVO-CHEPECK | S23: 1200 | T23: 999999 | U23: 50000 | V23: 49000 | W23: 39040 | X23: 39040 | Y23: SOVTRANS | AA23: KIROVO-CHEPECK | AB23: 1200 | AC23: 999999 | AD23: 45000 | AE23: 999999 | AF23: 34270 | AG23: 34270 | AH23: SOVTRANS | AJ23: KIROVO-CHEPECK | AK23: 54000 | AL23: 44100 | AM23: 43245 | AN23: 43245 | AO23: 43245 | AP23: ASSTRA | AR23: KIROVO-CHEPECK | AS23: 899999.1 | AT23: 45000 | AU23: 44100 | AV23: 35136 | AW23: 35136 | AX23: SOVTRANS | AZ23: KIROVO-CHEPECK | BA23: 899999.1 | BB23: 40500 | BC23: 899999.1 | BD23: 30843 | BE23: 30843 | BF23: SOVTRANS
I24: KRASNODAR | J24: 1300 | K24: 999999 | L24: 70000 | M24: 65000 | N24: 71000 | O24: 65000 | P24: ASSTRA | R24: KRASNODAR | S24: 1300 | T24: 999999 | U24: 59000 | V24: 65000 | W24: 57400 | X24: 57400 | Y24: SOVTRANS | AA24: KRASNODAR | AB24: 1300 | AC24: 999999 | AD24: 55000 | AE24: 55000 | AF24: 50200 | AG24: 50200 | AH24: SOVTRANS | AJ24: KRASNODAR | AK24: 63000 | AL24: 58500 | AM24: 63900 | AN24: 58500 | AO24: 58500 | AP24: DACHSER | AR24: KRASNODAR | AS24: 899999.1 | AT24: 53100 | AU24: 58500 | AV24: 51660 | AW24: 51660 | AX24: SOVTRANS | AZ24: KRASNODAR | BA24: 899999.1 | BB24: 49500 | BC24: 49500 | BD24: 45180 | BE24: 45180 | BF24: SOVTRANS
I25: KRASNOYARSK | J25: 4200 | K25: 999999 | L25: 240000 | M25: 170000 | N25: 207500 | O25: 170000 | P25: ASSTRA | R25: KRASNOYARSK | S25: 4200 | T25: 999999 | U25: 205000 | V25: 170000 | W25: 166400 | X25: 166400 | Y25: SOVTRANS | AA25: KRASNOYARSK | AB25: 4200 | AC25: 999999 | AD25: 185000 | AE25: 155000 | AF25: 146700 | AG25: 146700 | AH25: SOVTRANS | AJ25: KRASNOYARSK | AK25: 216000 | AL25: 153000 | AM25: 186750 | AN25: 153000 | AO25: 153000 | AP25: DACHSER | AR25: KRASNOYARSK | AS25: 899999.1 | AT25: 184500 | AU25: 153000 | AV25: 149760 | AW25: 149760 | AX25: SOVTRANS | AZ25: KRASNOYARSK | BA25: 899999.1 | BB25: 166500 | BC25: 139500 | BD25: 132030 | BE25: 132030 | BF25: SOVTRANS
I26: KSTOVO | J26: 520 | K26: 999999 | L26: 32000 | M26: 24000 | N26: 28500 | O26: 24000 | P26: ASSTRA | R26: KSTOVO | S26: 520 | T26: 999999 | U26: 29000 | V26: 24000 | W26: 23400 | X26: 23400 | Y26: SOVTRANS | AA26: KSTOVO | AB26: 520 | AC26: 999999 | AD26: 26000 | AE26: 19000 | AF26: 20700 | AG26: 19000 | AH26: ASSTRA | AJ26: KSTOVO | AK26: =IFERROR(L26-L26*15%,0) -> 27200 | AL26: =IFERROR(M26-M26*15%,0) -> 20400 | AM26: =IFERROR(N26-N26*15%,0) -> 24225 | AN26: =IFERROR(O26-O26*15%,0) -> 20400 | AO26: 20400 | AP26: DACHSER | AR26: KSTOVO | AS26: =IFERROR(T26-T26*15%,0) -> 849999.15 | AT26: =IFERROR(U26-U26*15%,0) -> 24650 | AU26: =IFERROR(V26-V26*15%,0) -> 20400 | AV26: =IFERROR(W26-W26*15%,0) -> 19890 | AW26: 19890 | AX26: SOVTRANS | AZ26: KSTOVO | BA26: =IFERROR(AC26-AC26*15%,0) -> 849999.15 | BB26: =IFERROR(AD26-AD26*15%,0) -> 22100 | BC26: =IFERROR(AE26-AE26*15%,0) -> 16150 | BD26: =IFERROR(AF26-AF26*15%,0) -> 17595 | BE26: 16150 | BF26: ASSTRA
I27: KURGAN | J27: 2100 | K27: 999999 | L27: 125000 | M27: 135000 | N27: 113500 | O27: 113500 | P27: SOVTRANS | R27: KURGAN | S27: 2100 | T27: 999999 | U27: 110000 | V27: 135000 | W27: 91400 | X27: 91400 | Y27: SOVTRANS | AA27: KURGAN | AB27: 2100 | AC27: 999999 | AD27: 105000 | AE27: 999999 | AF27: 79700 | AG27: 79700 | AH27: SOVTRANS | AJ27: KURGAN | AK27: =IFERROR(L27-L27*10%,0) -> 112500 | AL27: =IFERROR(M27-M27*10%,0) -> 121500 | AM27: =IFERROR(N27-N27*10%,0) -> 102150 | AN27: =IFERROR(O27-O27*10%,0) -> 102150 | AO27: 102150 | AP27: ASSTRA | AR27: KURGAN | AS27: =IFERROR(T27-T27*10%,0) -> 899999.1 | AT27: =IFERROR(U27-U27*10%,0) -> 99000 | AU27: =IFERROR(V27-V27*10%,0) -> 121500 | AV27: =IFERROR(W27-W27*10%,0) -> 82260 | AW27: 82260 | AX27: SOVTRANS | AZ27: KURGAN | BA27: =IFERROR(AC27-AC27*10%,0) -> 899999.1 | BB27: =IFERROR(AD27-AD27*10%,0) -> 94500 | BC27: =IFERROR(AE27-AE27*10%,0) -> 899999.1 | BD27: =IFERROR(AF27-AF27*10%,0) -> 71730 | BE27: 71730 | BF27: SOVTRANS
I28: LIPECK | J28: 430 | K28: 999999 | L28: 28000 | M28: 25000 | N28: 26100 | O28: 25000 | P28: ASSTRA | R28: LIPECK | S28: 430 | T28: 999999 | U28: 24000 | V28: 25000 | W28: 20680 | X28: 20680 | Y28: SOVTRANS | AA28: LIPECK | AB28: 430 | AC28: 999999 | AD28: 20000 | AE28: 20000 | AF28: 18340 | AG28: 18340 | AH28: SOVTRANS | AJ28: LIPECK | AK28: =IFERROR(L28-L28*10%,0) -> 25200 | AL28: 22500 | AM28: 23490 | AN28: 22500 | AO28: 22500 | AP28: DACHSER | AR28: LIPECK | AS28: 899999.1 | AT28: 21600 | AU28: 22500 | AV28: 18612 | AW28: 18612 | AX28: SOVTRANS | AZ28: LIPECK | BA28: =IFERROR(AC28-AC28*10%,0) -> 899999.1 | BB28: 18000 | BC28: 18000 | BD28: 16506 | BE28: 16506 | BF28: SOVTRANS
I29: MONCHEGORSK | J29: 1900 | K29: 999999 | L29: 100000 | M29: 85000 | N29: 107000 | O29: 85000 | P29: ASSTRA | R29: MONCHEGORSK | S29: 1900 | T29: 999999 | U29: 90000 | V29: 85000 | W29: 86600 | X29: 85000 | Y29: ASSTRA | AA29: MONCHEGORSK | AB29: 1900 | AC29: 999999 | AD29: 75000 | AE29: 999999 | AF29: 74800 | AG29: 74800 | AH29: SOVTRANS | AJ29: MONCHEGORSK | AK29: 90000 | AL29: 76500 | AM29: 96300 | AN29: 76500 | AO29: 76500 | AP29: DACHSER | AR29: MONCHEGORSK | AS29: 899999.1 | AT29: 81000 | AU29: 76500 | AV29: 77940 | AW29: 76500 | AX29: ASSTRA | AZ29: MONCHEGORSK | BA29: 899999.1 | BB29: 67500 | BC29: 899999.1 | BD29: 67320 | BE29: 67320 | BF29: SOVTRANS
I30: MOSCOW | J30: 110 | K30: 999999 | L30: 17000 | M30: 15000 | N30: 14050 | O30: 14050 | P30: SOVTRANS | R30: MOSCOW | S30: 110 | T30: 999999 | U30: 14000 | V30: 15000 | W30: 11200 | X30: 11200 | Y30: SOVTRANS | AA30: MOSCOW | AB30: 110 | AC30: 999999 | AD30: 12000 | AE30: 10000 | AF30: 9850 | AG30: 9850 | AH30: SOVTRANS | AJ30: MOSCOW | AK30: =IFERROR(L30-L30*15%,0) -> 14450 | AL30: =IFERROR(M30-M30*15%,0) -> 12750 | AM30: =IFERROR(N30-N30*15%,0) -> 11942.5 | AN30: =IFERROR(O30-O30*15%,0) -> 11942.5 | AO30: 11942.5 | AP30: ASSTRA | AR30: MOSCOW | AS30: =IFERROR(T30-T30*15%,0) -> 849999.15 | AT30: =IFERROR(U30-U30*15%,0) -> 11900 | AU30: =IFERROR(V30-V30*15%,0) -> 12750 | AV30: =IFERROR(W30-W30*15%,0) -> 9520 | AW30: 9520 | AX30: SOVTRANS | AZ30: MOSCOW | BA30: =IFERROR(AC30-AC30*15%,0) -> 849999.15 | BB30: =IFERROR(AD30-AD30*15%,0) -> 10200 | BC30: =IFERROR(AE30-AE30*15%,0) -> 8500 | BD30: =IFERROR(AF30-AF30*15%,0) -> 8372.5 | BE30: 8372.5 | BF30: SOVTRANS
I31: MOZYR, BY | J31: 720 | K31: 999999 | L31: 32000 | M31: 30000 | N31: 999999 | O31: 30000 | P31: ASSTRA | R31: MOZYR, BY | S31: 720 | T31: 999999 | U31: 29000 | V31: 26000 | W31: 999999 | X31: 26000 | Y31: ASSTRA | AA31: MOZYR, BY | AB31: 720 | AC31: 999999 | AD31: 25000 | AE31: 999999 | AF31: 999999 | AG31: 25000 | AH31: DACHSER | AJ31: MOZYR, BY | AK31: =IFERROR(L31-L31*10%,0) -> 28800 | AL31: =IFERROR(M31-M31*10%,0) -> 27000 | AM31: =IFERROR(N31-N31*10%,0) -> 899999.1 | AN31: =IFERROR(O31-O31*10%,0) -> 27000 | AO31: 27000 | AP31: DACHSER | AR31: MOZYR, BY | AS31: =IFERROR(T31-T31*10%,0) -> 899999.1 | AT31: =IFERROR(U31-U31*10%,0) -> 26100 | AU31: =IFERROR(V31-V31*10%,0) -> 23400 | AV31: =IFERROR(W31-W31*10%,0) -> 899999.1 | AW31: 23400 | AX31: ASSTRA | AZ31: MOZYR, BY | BA31: =IFERROR(AC31-AC31*10%,0) -> 899999.1 | BB31: =IFERROR(AD31-AD31*10%,0) -> 22500 | BC31: =IFERROR(AE31-AE31*10%,0) -> 899999.1 | BD31: =IFERROR(AF31-AF31*10%,0) -> 899999.1 | BE31: 22500 | BF31: DACHSER
I32: NIZHNEKAMSK | J32: 1100 | K32: 999999 | L32: 63000 | M32: 48000 | N32: 59100 | O32: 48000 | P32: ASSTRA | R32: NIZHNEKAMSK | S32: 1100 | T32: 999999 | U32: 52000 | V32: 48000 | W32: 47880 | X32: 47880 | Y32: SOVTRANS | AA32: NIZHNEKAMSK | AB32: 1100 | AC32: 999999 | AD32: 45000 | AE32: 35000 | AF32: 40940 | AG32: 35000 | AH32: ASSTRA | AJ32: NIZHNEKAMSK | AK32: =IFERROR(L32-L32*15%,0) -> 53550 | AL32: =IFERROR(M32-M32*15%,0) -> 40800 | AM32: =IFERROR(N32-N32*15%,0) -> 50235 | AN32: =IFERROR(O32-O32*15%,0) -> 40800 | AO32: 40800 | AP32: DACHSER | AR32: NIZHNEKAMSK | AS32: =IFERROR(T32-T32*15%,0) -> 849999.15 | AT32: =IFERROR(U32-U32*15%,0) -> 44200 | AU32: =IFERROR(V32-V32*15%,0) -> 40800 | AV32: =IFERROR(W32-W32*15%,0) -> 40698 | AW32: 40698 | AX32: SOVTRANS | AZ32: NIZHNEKAMSK | BA32: =IFERROR(AC32-AC32*15%,0) -> 849999.15 | BB32: =IFERROR(AD32-AD32*15%,0) -> 38250 | BC32: =IFERROR(AE32-AE32*15%,0) -> 29750 | BD32: =IFERROR(AF32-AF32*15%,0) -> 34799 | BE32: 29750 | BF32: ASSTRA
I33: NIZHNEVARTOVSK | J33: 3200 | K33: 999999 | L33: 180000 | M33: 144000 | N33: 160250 | O33: 144000 | P33: ASSTRA | R33: NIZHNEVARTOVSK | S33: 3200 | T33: 999999 | U33: 145000 | V33: 144000 | W33: 128800 | X33: 128800 | Y33: SOVTRANS | AA33: NIZHNEVARTOVSK | AB33: 3200 | AC33: 999999 | AD33: 135000 | AE33: 999999 | AF33: 112150 | AG33: 112150 | AH33: SOVTRANS | AJ33: NIZHNEVARTOVSK | AK33: =IFERROR(L33-L33*10%,0) -> 162000 | AL33: =IFERROR(M33-M33*10%,0) -> 129600 | AM33: =IFERROR(N33-N33*10%,0) -> 144225 | AN33: =IFERROR(O33-O33*10%,0) -> 129600 | AO33: 129600 | AP33: DACHSER | AR33: NIZHNEVARTOVSK | AS33: =IFERROR(T33-T33*10%,0) -> 899999.1 | AT33: =IFERROR(U33-U33*10%,0) -> 130500 | AU33: =IFERROR(V33-V33*10%,0) -> 129600 | AV33: =IFERROR(W33-W33*10%,0) -> 115920 | AW33: 115920 | AX33: SOVTRANS | AZ33: NIZHNEVARTOVSK | BA33: =IFERROR(AC33-AC33*10%,0) -> 899999.1 | BB33: =IFERROR(AD33-AD33*10%,0) -> 121500 | BC33: =IFERROR(AE33-AE33*10%,0) -> 899999.1 | BD33: =IFERROR(AF33-AF33*10%,0) -> 100935 | BE33: 100935 | BF33: SOVTRANS
I34: NIZHNY NOVGOROD | J34: 500 | K34: 999999 | L34: 30000 | M34: 24000 | N34: 26800 | O34: 24000 | P34: ASSTRA | R34: NIZHNY NOVGOROD | S34: 500 | T34: 999999 | U34: 27000 | V34: 24000 | W34: 21040 | X34: 21040 | Y34: SOVTRANS | AA34: NIZHNY NOVGOROD | AB34: 500 | AC34: 999999 | AD34: 24000 | AE34: 19000 | AF34: 19520 | AG34: 19000 | AH34: ASSTRA | AJ34: NIZHNY NOVGOROD | AK34: =IFERROR(L34-L34*15%,0) -> 25500 | AL34: =IFERROR(M34-M34*15%,0) -> 20400 | AM34: =IFERROR(N34-N34*15%,0) -> 22780 | AN34: =IFERROR(O34-O34*15%,0) -> 20400 | AO34: 20400 | AP34: DACHSER | AR34: NIZHNY NOVGOROD | AS34: =IFERROR(T34-T34*15%,0) -> 849999.15 | AT34: =IFERROR(U34-U34*15%,0) -> 22950 | AU34: =IFERROR(V34-V34*15%,0) -> 20400 | AV34: =IFERROR(W34-W34*15%,0) -> 17884 | AW34: 17884 | AX34: SOVTRANS | AZ34: NIZHNY NOVGOROD | BA34: =IFERROR(AC34-AC34*15%,0) -> 849999.15 | BB34: =IFERROR(AD34-AD34*15%,0) -> 20400 | BC34: =IFERROR(AE34-AE34*15%,0) -> 16150 | BD34: =IFERROR(AF34-AF34*15%,0) -> 16592 | BE34: 16150 | BF34: ASSTRA
I35: NOVIY URENGOY | J35: 3800 | K35: 999999 | L35: 220000 | M35: 165000 | N35: 251000 | O35: 165000 | P35: ASSTRA | R35: NOVIY URENGOY | S35: 3800 | T35: 999999 | U35: 180000 | V35: 165000 | W35: 179800 | X35: 165000 | Y35: ASSTRA | AA35: NOVIY URENGOY | AB35: 3800 | AC35: 999999 | AD35: 170000 | AE35: 145000 | AF35: 156400 | AG35: 145000 | AH35: ASSTRA | AJ35: NOVIY URENGOY | AK35: =IFERROR(L35-L35*10%,0) -> 198000 | AL35: =IFERROR(M35-M35*10%,0) -> 148500 | AM35: =IFERROR(N35-N35*10%,0) -> 225900 | AN35: =IFERROR(O35-O35*10%,0) -> 148500 | AO35: 148500 | AP35: DACHSER | AR35: NOVIY URENGOY | AS35: =IFERROR(T35-T35*10%,0) -> 899999.1 | AT35: =IFERROR(U35-U35*10%,0) -> 162000 | AU35: =IFERROR(V35-V35*10%,0) -> 148500 | AV35: =IFERROR(W35-W35*10%,0) -> 161820 | AW35: 148500 | AX35: ASSTRA | AZ35: NOVIY URENGOY | BA35: =IFERROR(AC35-AC35*10%,0) -> 899999.1 | BB35: =IFERROR(AD35-AD35*10%,0) -> 153000 | BC35: =IFERROR(AE35-AE35*10%,0) -> 130500 | BD35: =IFERROR(AF35-AF35*10%,0) -> 140760 | BE35: 130500 | BF35: ASSTRA
I36: NOVOMOSKOVSK | J36: 180 | K36: 999999 | L36: 20000 | M36: 17000 | N36: 17025 | O36: 17000 | P36: ASSTRA | R36: NOVOMOSKOVSK | S36: 180 | T36: 999999 | U36: 18000 | V36: 17000 | W36: 14220 | X36: 14220 | Y36: SOVTRANS | AA36: NOVOMOSKOVSK | AB36: 180 | AC36: 999999 | AD36: 16000 | AE36: 12000 | AF36: 12735 | AG36: 12000 | AH36: ASSTRA | AJ36: NOVOMOSKOVSK | AK36: =IFERROR(L36-L36*15%,0) -> 17000 | AL36: =IFERROR(M36-M36*15%,0) -> 14450 | AM36: =IFERROR(N36-N36*15%,0) -> 14471.25 | AN36: =IFERROR(O36-O36*15%,0) -> 14450 | AO36: 14450 | AP36: DACHSER | AR36: NOVOMOSKOVSK | AS36: =IFERROR(T36-T36*15%,0) -> 849999.15 | AT36: =IFERROR(U36-U36*15%,0) -> 15300 | AU36: =IFERROR(V36-V36*15%,0) -> 14450 | AV36: =IFERROR(W36-W36*15%,0) -> 12087 | AW36: 12087 | AX36: SOVTRANS | AZ36: NOVOMOSKOVSK | BA36: =IFERROR(AC36-AC36*15%,0) -> 849999.15 | BB36: =IFERROR(AD36-AD36*15%,0) -> 13600 | BC36: =IFERROR(AE36-AE36*15%,0) -> 10200 | BD36: =IFERROR(AF36-AF36*15%,0) -> 10824.75 | BE36: 10200 | BF36: ASSTRA
I37: NOVOPOLOCK. BY | J37: 640 | K37: 999999 | L37: 31000 | M37: 35000 | N37: 999999 | O37: 31000 | P37: DACHSER | R37: NOVOPOLOCK. BY | S37: 640 | T37: 999999 | U37: 28000 | V37: 31000 | W37: 99999 | X37: 28000 | Y37: DACHSER | AA37: NOVOPOLOCK. BY | AB37: 640 | AC37: 999999 | AD37: 24000 | AE37: 999999 | AF37: 999999 | AG37: 24000 | AH37: DACHSER | AJ37: NOVOPOLOCK. BY | AK37: =IFERROR(L37-L37*10%,0) -> 27900 | AL37: =IFERROR(M37-M37*10%,0) -> 31500 | AM37: =IFERROR(N37-N37*10%,0) -> 899999.1 | AN37: =IFERROR(O37-O37*10%,0) -> 27900 | AO37: 27900 | AP37: AGILITY | AR37: NOVOPOLOCK. BY | AS37: =IFERROR(T37-T37*10%,0) -> 899999.1 | AT37: =IFERROR(U37-U37*10%,0) -> 25200 | AU37: =IFERROR(V37-V37*10%,0) -> 27900 | AV37: =IFERROR(W37-W37*10%,0) -> 89999.1 | AW37: 25200 | AX37: =IF(AW37=AS37,$T$4,IF(AW37=AT37,$U$4,IF(AW37=AU37,$V$4,IF(AW37=AV37,$W$4,0)))) -> DACHSER | AZ37: NOVOPOLOCK. BY | BA37: =IFERROR(AC37-AC37*10%,0) -> 899999.1 | BB37: =IFERROR(AD37-AD37*10%,0) -> 21600 | BC37: =IFERROR(AE37-AE37*10%,0) -> 899999.1 | BD37: =IFERROR(AF37-AF37*10%,0) -> 899999.1 | BE37: 21600 | BF37: DACHSER
I38: NOVOSHAHTINSK | J38: 980 | K38: 999999 | L38: 60000 | M38: 58000 | N38: 55700 | O38: 55700 | P38: SOVTRANS | R38: NOVOSHAHTINSK | S38: 980 | T38: 999999 | U38: 50000 | V38: 58000 | W38: 45160 | X38: 45160 | Y38: SOVTRANS | AA38: NOVOSHAHTINSK | AB38: 980 | AC38: 999999 | AD38: 45000 | AE38: 999999 | AF38: 39580 | AG38: 39580 | AH38: SOVTRANS | AJ38: NOVOSHAHTINSK | AK38: =IFERROR(L38-L38*10%,0) -> 54000 | AL38: 52200 | AM38: 50130 | AN38: 50130 | AO38: 50130 | AP38: ASSTRA | AR38: NOVOSHAHTINSK | AS38: 899999.1 | AT38: 45000 | AU38: 52200 | AV38: 40644 | AW38: 40644 | AX38: SOVTRANS | AZ38: NOVOSHAHTINSK | BA38: =IFERROR(AC38-AC38*10%,0) -> 899999.1 | BB38: 40500 | BC38: 899999.1 | BD38: 35622 | BE38: 35622 | BF38: SOVTRANS
I39: OMSK | J39: 2800 | K39: 999999 | L39: 154000 | M39: 110000 | N39: 138400 | O39: 110000 | P39: ASSTRA | R39: OMSK | S39: 2800 | T39: 999999 | U39: 130000 | V39: 110000 | W39: 110670 | X39: 110000 | Y39: ASSTRA | AA39: OMSK | AB39: 2800 | AC39: 999999 | AD39: 110000 | AE39: 999999 | AF39: 96400 | AG39: 96400 | AH39: SOVTRANS | AJ39: OMSK | AK39: =IFERROR(L39-L39*10%,0) -> 138600 | AL39: 99000 | AM39: 124560 | AN39: 99000 | AO39: 99000 | AP39: DACHSER | AR39: OMSK | AS39: =IFERROR(T39-T39*10%,0) -> 899999.1 | AT39: 117000 | AU39: 99000 | AV39: 99603 | AW39: 99000 | AX39: ASSTRA | AZ39: OMSK | BA39: =IFERROR(AC39-AC39*10%,0) -> 899999.1 | BB39: 99000 | BC39: 899999.1 | BD39: 86760 | BE39: 86760 | BF39: SOVTRANS
I40: ORENBURG | J40: 1500 | K40: 999999 | L40: 85000 | M40: 75000 | N40: 80300 | O40: 75000 | P40: ASSTRA | R40: ORENBURG | S40: 1500 | T40: 999999 | U40: 70000 | V40: 75000 | W40: 64330 | X40: 64330 | Y40: SOVTRANS | AA40: ORENBURG | AB40: 1500 | AC40: 999999 | AD40: 62000 | AE40: 999999 | AF40: 56545 | AG40: 56545 | AH40: SOVTRANS | AJ40: ORENBURG | AK40: =IFERROR(L40-L40*10%,0) -> 76500 | AL40: 67500 | AM40: 72270 | AN40: 67500 | AO40: 67500 | AP40: DACHSER | AR40: ORENBURG | AS40: =IFERROR(T40-T40*10%,0) -> 899999.1 | AT40: 63000 | AU40: 67500 | AV40: 57897 | AW40: 57897 | AX40: SOVTRANS | AZ40: ORENBURG | BA40: =IFERROR(AC40-AC40*10%,0) -> 899999.1 | BB40: 55800 | BC40: 899999.1 | BD40: 50890.5 | BE40: 50890.5 | BF40: SOVTRANS
I41: ORSK | J41: 1800 | K41: 999999 | L41: 95000 | M41: 80000 | N41: 89400 | O41: 80000 | P41: ASSTRA | R41: ORSK | S41: 1800 | T41: 999999 | U41: 80000 | V41: 80000 | W41: 71400 | X41: 71400 | Y41: SOVTRANS | AA41: ORSK | AB41: 1800 | AC41: 999999 | AD41: 75000 | AE41: 999999 | AF41: 63000 | AG41: 63000 | AH41: SOVTRANS | AJ41: ORSK | AK41: =IFERROR(L41-L41*10%,0) -> 85500 | AL41: 72000 | AM41: 80460 | AN41: 72000 | AO41: 72000 | AP41: DACHSER | AR41: ORSK | AS41: 899999.1 | AT41: 72000 | AU41: 72000 | AV41: 64260 | AW41: 64260 | AX41: SOVTRANS | AZ41: ORSK | BA41: =IFERROR(AC41-AC41*10%,0) -> 899999.1 | BB41: 67500 | BC41: 899999.1 | BD41: 56700 | BE41: 56700 | BF41: SOVTRANS
I42: PAVLODAR | J42: 3200 | K42: 999999 | L42: 180000 | M42: 175000 | N42: 999999 | O42: 175000 | P42: ASSTRA | R42: PAVLODAR | S42: 3200 | T42: 999999 | U42: 160000 | V42: 999999 | W42: 999999 | X42: 160000 | Y42: DACHSER | AA42: PAVLODAR | AB42: 3200 | AC42: 999999 | AD42: 145000 | AE42: 999999 | AF42: 999999 | AG42: 145000 | AH42: DACHSER | AJ42: PAVLODAR | AK42: 162000 | AL42: 157500 | AM42: 899999.1 | AN42: 157500 | AO42: 157500 | AP42: DACHSER | AR42: PAVLODAR | AS42: 899999.1 | AT42: 144000 | AU42: 899999.1 | AV42: 899999.1 | AW42: 144000 | AX42: DACHSER | AZ42: PAVLODAR | BA42: 899999.1 | BB42: 130500 | BC42: 899999.1 | BD42: 899999.1 | BE42: 130500 | BF42: DACHSER
I43: PERM | J43: 1500 | K43: 999999 | L43: 80000 | M43: 75000 | N43: 77700 | O43: 75000 | P43: ASSTRA | R43: PERM | S43: 1500 | T43: 999999 | U43: 65000 | V43: 75000 | W43: 62100 | X43: 62100 | Y43: SOVTRANS | AA43: PERM | AB43: 1500 | AC43: 999999 | AD43: 55000 | AE43: 999999 | AF43: 53800 | AG43: 53800 | AH43: SOVTRANS | AJ43: PERM | AK43: =IFERROR(L43-L43*15%,0) -> 68000 | AL43: =IFERROR(M43-M43*15%,0) -> 63750 | AM43: =IFERROR(N43-N43*15%,0) -> 66045 | AN43: =IFERROR(O43-O43*15%,0) -> 63750 | AO43: 63750 | AP43: DACHSER | AR43: PERM | AS43: =IFERROR(T43-T43*15%,0) -> 849999.15 | AT43: =IFERROR(U43-U43*15%,0) -> 55250 | AU43: =IFERROR(V43-V43*15%,0) -> 63750 | AV43: =IFERROR(W43-W43*15%,0) -> 52785 | AW43: 52785 | AX43: SOVTRANS | AZ43: PERM | BA43: =IFERROR(AC43-AC43*15%,0) -> 849999.15 | BB43: =IFERROR(AD43-AD43*15%,0) -> 46750 | BC43: =IFERROR(AE43-AE43*15%,0) -> 849999.15 | BD43: =IFERROR(AF43-AF43*15%,0) -> 45730 | BE43: 45730 | BF43: SOVTRANS
I44: PODOLSK | J44: 68 | K44: 999999 | L44: 17000 | M44: 18000 | N44: 12400 | O44: 12400 | P44: SOVTRANS | R44: PODOLSK | S44: 68 | T44: 999999 | U44: 14000 | V44: 18000 | W44: 9460 | X44: 9460 | Y44: SOVTRANS | AA44: PODOLSK | AB44: 68 | AC44: 999999 | AD44: 12000 | AE44: 12000 | AF44: 8380 | AG44: 8380 | AH44: SOVTRANS | AJ44: PODOLSK | AK44: =IFERROR(L44-L44*15%,0) -> 14450 | AL44: 15300 | AM44: 10540 | AN44: 10540 | AO44: 10540 | AP44: ASSTRA | AR44: PODOLSK | AS44: =IFERROR(T44-T44*15%,0) -> 849999.15 | AT44: 11900 | AU44: 15300 | AV44: 8041 | AW44: 8041 | AX44: SOVTRANS | AZ44: PODOLSK | BA44: =IFERROR(AC44-AC44*15%,0) -> 849999.15 | BB44: 10200 | BC44: 10200 | BD44: 7123 | BE44: 7123 | BF44: SOVTRANS
I45: ROSTOV-NA-DONU | J45: 1000 | K45: 999999 | L45: 60000 | M45: 55000 | N45: 56550 | O45: 55000 | P45: ASSTRA | R45: ROSTOV-NA-DONU | S45: 1000 | T45: 999999 | U45: 48000 | V45: 55000 | W45: 45840 | X45: 45840 | Y45: SOVTRANS | AA45: ROSTOV-NA-DONU | AB45: 1000 | AC45: 999999 | AD45: 45000 | AE45: 47000 | AF45: 40170 | AG45: 40170 | AH45: SOVTRANS | AJ45: ROSTOV-NA-DONU | AK45: =IFERROR(L45-L45*10%,0) -> 54000 | AL45: =IFERROR(M45-M45*10%,0) -> 49500 | AM45: =IFERROR(N45-N45*10%,0) -> 50895 | AN45: =IFERROR(O45-O45*10%,0) -> 49500 | AO45: 49500 | AP45: DACHSER | AR45: ROSTOV-NA-DONU | AS45: =IFERROR(T45-T45*10%,0) -> 899999.1 | AT45: =IFERROR(U45-U45*10%,0) -> 43200 | AU45: =IFERROR(V45-V45*10%,0) -> 49500 | AV45: =IFERROR(W45-W45*10%,0) -> 41256 | AW45: 41256 | AX45: SOVTRANS | AZ45: ROSTOV-NA-DONU | BA45: =IFERROR(AC45-AC45*10%,0) -> 899999.1 | BB45: =IFERROR(AD45-AD45*10%,0) -> 40500 | BC45: =IFERROR(AE45-AE45*10%,0) -> 42300 | BD45: =IFERROR(AF45-AF45*10%,0) -> 36153 | BE45: 36153 | BF45: SOVTRANS
I46: RYAZAN | J46: 210 | K46: 999999 | L46: 19000 | M46: 17000 | N46: 17875 | O46: 17000 | P46: ASSTRA | R46: RYAZAN | S46: 210 | T46: 999999 | U46: 17000 | V46: 17000 | W46: 14900 | X46: 14900 | Y46: SOVTRANS | AA46: RYAZAN | AB46: 210 | AC46: 999999 | AD46: 14000 | AE46: 13000 | AF46: 13225 | AG46: 13000 | AH46: ASSTRA | AJ46: RYAZAN | AK46: =IFERROR(L46-L46*10%,0) -> 17100 | AL46: 15300 | AM46: 16087.5 | AN46: 15300 | AO46: 15300 | AP46: DACHSER | AR46: RYAZAN | AS46: 899999.1 | AT46: 15300 | AU46: 15300 | AV46: 13410 | AW46: 13410 | AX46: SOVTRANS | AZ46: RYAZAN | BA46: =IFERROR(AC46-AC46*10%,0) -> 899999.1 | BB46: 12600 | BC46: 11700 | BD46: 11902.5 | BE46: 11700 | BF46: ASSTRA
I47: SAMARA | J47: 1100 | K47: 999999 | L47: 60000 | M47: 45000 | N47: 57550 | O47: 45000 | P47: ASSTRA | R47: SAMARA | S47: 1100 | T47: 999999 | U47: 48000 | V47: 45000 | W47: 45940 | X47: 45000 | Y47: ASSTRA | AA47: SAMARA | AB47: 1100 | AC47: 999999 | AD47: 43000 | AE47: 35000 | AF47: 40170 | AG47: 35000 | AH47: ASSTRA | AJ47: SAMARA | AK47: 54000 | AL47: 40500 | AM47: 51795 | AN47: 40500 | AO47: 40500 | AP47: DACHSER | AR47: SAMARA | AS47: 899999.1 | AT47: 43200 | AU47: 40500 | AV47: 41346 | AW47: 40500 | AX47: ASSTRA | AZ47: SAMARA | BA47: 899999.1 | BB47: 38700 | BC47: 31500 | BD47: 36153 | BE47: 31500 | BF47: ASSTRA
I48: SANKT-PETERBURG | J48: 820 | K48: 999999 | L48: 32000 | M48: 999999 | N48: 33900 | O48: 32000 | P48: DACHSER | R48: SANKT-PETERBURG | S48: 820 | T48: 999999 | U48: 28000 | V48: 999999 | W48: 27980 | X48: 27980 | Y48: SOVTRANS | AA48: SANKT-PETERBURG | AB48: 820 | AC48: 999999 | AD48: 26000 | AE48: 999999 | AF48: 23940 | AG48: 23940 | AH48: SOVTRANS | AJ48: SANKT-PETERBURG | AK48: 28800 | AL48: 899999.1 | AM48: 30510 | AN48: 28800 | AO48: 28800 | AP48: AGILITY | AR48: SANKT-PETERBURG | AS48: 899999.1 | AT48: 25200 | AU48: 899999.1 | AV48: 25182 | AW48: 25182 | AX48: SOVTRANS | AZ48: SANKT-PETERBURG | BA48: 899999.1 | BB48: 23400 | BC48: 899999.1 | BD48: 21546 | BE48: 21546 | BF48: SOVTRANS
I49: SARATOV | J49: 870 | K49: 999999 | L49: 50000 | M49: 42000 | N49: 47200 | O49: 42000 | P49: ASSTRA | R49: SARATOV | S49: 870 | T49: 999999 | U49: 41000 | V49: 42000 | W49: 39360 | X49: 39360 | Y49: SOVTRANS | AA49: SARATOV | AB49: 870 | AC49: 999999 | AD49: 38000 | AE49: 999999 | AF49: 33680 | AG49: 33680 | AH49: SOVTRANS | AJ49: SARATOV | AK49: =IFERROR(L49-L49*15%,0) -> 42500 | AL49: =IFERROR(M49-M49*15%,0) -> 35700 | AM49: =IFERROR(N49-N49*15%,0) -> 40120 | AN49: =IFERROR(O49-O49*15%,0) -> 35700 | AO49: 35700 | AP49: DACHSER | AR49: SARATOV | AS49: =IFERROR(T49-T49*15%,0) -> 849999.15 | AT49: =IFERROR(U49-U49*15%,0) -> 34850 | AU49: =IFERROR(V49-V49*15%,0) -> 35700 | AV49: =IFERROR(W49-W49*15%,0) -> 33456 | AW49: 33456 | AX49: SOVTRANS | AZ49: SARATOV | BA49: =IFERROR(AC49-AC49*15%,0) -> 849999.15 | BB49: =IFERROR(AD49-AD49*15%,0) -> 32300 | BC49: =IFERROR(AE49-AE49*15%,0) -> 849999.15 | BD49: =IFERROR(AF49-AF49*15%,0) -> 28628 | BE49: 28628 | BF49: SOVTRANS
I50: SALAVAT | J50: 1500 | K50: 999999 | L50: 68000 | M50: 75000 | N50: 76800 | O50: 68000 | P50: DACHSER | R50: SALAVAT | S50: 1500 | T50: 999999 | U50: 81000 | V50: 75000 | W50: 60690 | X50: 60690 | Y50: SOVTRANS | AA50: SALAVAT | AB50: 1500 | AC50: 999999 | AD50: 93000 | AE50: 999999 | AF50: 53000 | AG50: 53000 | AH50: SOVTRANS | AJ50: SALAVAT | AK50: =IFERROR(L50-L50*10%,0) -> 61200 | AL50: =IFERROR(M50-M50*10%,0) -> 67500 | AM50: =IFERROR(N50-N50*10%,0) -> 69120 | AN50: =IFERROR(O50-O50*10%,0) -> 61200 | AO50: 61200 | AP50: AGILITY | AR50: SALAVAT | AS50: =IFERROR(T50-T50*10%,0) -> 899999.1 | AT50: =IFERROR(U50-U50*10%,0) -> 72900 | AU50: =IFERROR(V50-V50*10%,0) -> 67500 | AV50: =IFERROR(W50-W50*10%,0) -> 54621 | AW50: 54621 | AX50: SOVTRANS | AZ50: SALAVAT | BA50: =IFERROR(AC50-AC50*10%,0) -> 899999.1 | BB50: =IFERROR(AD50-AD50*10%,0) -> 83700 | BC50: =IFERROR(AE50-AE50*10%,0) -> 899999.1 | BD50: =IFERROR(AF50-AF50*10%,0) -> 47700 | BE50: 47700 | BF50: SOVTRANS
I51: SOFRINO | J51: 160 | K51: 999999 | L51: 19000 | M51: 19000 | N51: 16150 | O51: 16150 | P51: SOVTRANS | R51: SOFRINO | S51: 160 | T51: 999999 | U51: 16000 | V51: 19000 | W51: 12960 | X51: 12960 | Y51: SOVTRANS | AA51: SOFRINO | AB51: 160 | AC51: 999999 | AD51: 14000 | AE51: 13000 | AF51: 11230 | AG51: 11230 | AH51: SOVTRANS | AJ51: SOFRINO | AK51: =IFERROR(L51-L51*10%,0) -> 17100 | AL51: 17100 | AM51: 14535 | AN51: 14535 | AO51: 14535 | AP51: ASSTRA | AR51: SOFRINO | AS51: 899999.1 | AT51: 14400 | AU51: 17100 | AV51: 11664 | AW51: 11664 | AX51: SOVTRANS | AZ51: SOFRINO | BA51: =IFERROR(AC51-AC51*10%,0) -> 899999.1 | BB51: 12600 | BC51: 11700 | BD51: 10107 | BE51: 10107 | BF51: SOVTRANS
I52: SYZRAN | J52: 910 | K52: 999999 | L52: 59000 | M52: 46000 | N52: 56700 | O52: 46000 | P52: ASSTRA | R52: SYZRAN | S52: 910 | T52: 999999 | U52: 45000 | V52: 46000 | W52: 45160 | X52: 45000 | Y52: DACHSER | AA52: SYZRAN | AB52: 910 | AC52: 999999 | AD52: 40000 | AE52: 999999 | AF52: 39580 | AG52: 39580 | AH52: SOVTRANS | AJ52: SYZRAN | AK52: 53100 | AL52: 41400 | AM52: 51030 | AN52: 41400 | AO52: 41400 | AP52: DACHSER | AR52: SYZRAN | AS52: 899999.1 | AT52: 40500 | AU52: 41400 | AV52: 40644 | AW52: 40500 | AX52: DACHSER | AZ52: SYZRAN | BA52: 899999.1 | BB52: 36000 | BC52: 899999.1 | BD52: 35622 | BE52: 35622 | BF52: SOVTRANS
I53: TAGANROG | J53: 1100 | K53: 999999 | L53: 65000 | M53: 58000 | N53: 63500 | O53: 58000 | P53: ASSTRA | R53: TAGANROG | S53: 1100 | T53: 999999 | U53: 52000 | V53: 58000 | W53: 50600 | X53: 50600 | Y53: SOVTRANS | AA53: TAGANROG | AB53: 1100 | AC53: 999999 | AD53: 48000 | AE53: 999999 | AF53: 44300 | AG53: 44300 | AH53: SOVTRANS | AJ53: TAGANROG | AK53: 58500 | AL53: 52200 | AM53: 57150 | AN53: 52200 | AO53: 52200 | AP53: DACHSER | AR53: TAGANROG | AS53: 899999.1 | AT53: 46800 | AU53: 52200 | AV53: 45540 | AW53: 45540 | AX53: SOVTRANS | AZ53: TAGANROG | BA53: 899999.1 | BB53: 43200 | BC53: 899999.1 | BD53: 39870 | BE53: 39870 | BF53: SOVTRANS
I54: TULA | J54: 95 | K54: 999999 | L54: 18000 | M54: 17000 | N54: 16025 | O54: 16025 | P54: SOVTRANS | R54: TULA | S54: 95 | T54: 999999 | U54: 15000 | V54: 17000 | W54: 13220 | X54: 13220 | Y54: SOVTRANS | AA54: TULA | AB54: 95 | AC54: 999999 | AD54: 14000 | AE54: 19000 | AF54: 11735 | AG54: 11735 | AH54: SOVTRANS | AJ54: TULA | AK54: =IFERROR(L54-L54*15%,0) -> 15300 | AL54: =IFERROR(M54-M54*15%,0) -> 14450 | AM54: =IFERROR(N54-N54*15%,0) -> 13621.25 | AN54: =IFERROR(O54-O54*15%,0) -> 13621.25 | AO54: 13621.25 | AP54: ASSTRA | AR54: TULA | AS54: =IFERROR(T54-T54*15%,0) -> 849999.15 | AT54: =IFERROR(U54-U54*15%,0) -> 12750 | AU54: =IFERROR(V54-V54*15%,0) -> 14450 | AV54: =IFERROR(W54-W54*15%,0) -> 11237 | AW54: 11237 | AX54: SOVTRANS | AZ54: TULA | BA54: =IFERROR(AC54-AC54*15%,0) -> 849999.15 | BB54: =IFERROR(AD54-AD54*15%,0) -> 11900 | BC54: =IFERROR(AE54-AE54*15%,0) -> 16150 | BD54: =IFERROR(AF54-AF54*15%,0) -> 9974.75 | BE54: 9974.75 | BF54: SOVTRANS
I55: TUMEN | J55: 2200 | K55: 999999 | L55: 125000 | M55: 98000 | N55: 123500 | O55: 98000 | P55: ASSTRA | R55: TUMEN | S55: 2200 | T55: 999999 | U55: 110000 | V55: 98000 | W55: 99400 | X55: 98000 | Y55: ASSTRA | AA55: TUMEN | AB55: 2200 | AC55: 999999 | AD55: 90000 | AE55: 999999 | AF55: 87700 | AG55: 87700 | AH55: SOVTRANS | AJ55: TUMEN | AK55: =IFERROR(L55-L55*10%,0) -> 112500 | AL55: =IFERROR(M55-M55*10%,0) -> 88200 | AM55: =IFERROR(N55-N55*10%,0) -> 111150 | AN55: =IFERROR(O55-O55*10%,0) -> 88200 | AO55: 88200 | AP55: DACHSER | AR55: TUMEN | AS55: =IFERROR(T55-T55*10%,0) -> 899999.1 | AT55: =IFERROR(U55-U55*10%,0) -> 99000 | AU55: =IFERROR(V55-V55*10%,0) -> 88200 | AV55: =IFERROR(W55-W55*10%,0) -> 89460 | AW55: 88200 | AX55: ASSTRA | AZ55: TUMEN | BA55: =IFERROR(AC55-AC55*10%,0) -> 899999.1 | BB55: =IFERROR(AD55-AD55*10%,0) -> 81000 | BC55: =IFERROR(AE55-AE55*10%,0) -> 899999.1 | BD55: =IFERROR(AF55-AF55*10%,0) -> 78930 | BE55: 78930 | BF55: SOVTRANS
I56: ULYANOVSK | J56: 890 | K56: 999999 | L56: 55000 | M56: 40000 | N56: 53300 | O56: 40000 | P56: ASSTRA | R56: ULYANOVSK | S56: 890 | T56: 999999 | U56: 40000 | V56: 40000 | W56: 43440 | X56: 40000 | Y56: DACHSER | AA56: ULYANOVSK | AB56: 890 | AC56: 999999 | AD56: 38000 | AE56: 999999 | AF56: 39220 | AG56: 38000 | AH56: DACHSER | AJ56: ULYANOVSK | AK56: =IFERROR(L56-L56*10%,0) -> 49500 | AL56: 36000 | AM56: 47970 | AN56: 36000 | AO56: 36000 | AP56: DACHSER | AR56: ULYANOVSK | AS56: 899999.1 | AT56: 36000 | AU56: 36000 | AV56: 39096 | AW56: 36000 | AX56: DACHSER | AZ56: ULYANOVSK | BA56: =IFERROR(AC56-AC56*10%,0) -> 899999.1 | BB56: 34200 | BC56: 899999.1 | BD56: 35298 | BE56: 34200 | BF56: DACHSER
I57: UREN | J57: 700 | K57: 999999 | L57: 46000 | M57: 45000 | N57: 39700 | O57: 39700 | P57: SOVTRANS | R57: UREN | S57: 700 | T57: 999999 | U57: 42000 | V57: 45000 | W57: 32560 | X57: 32560 | Y57: SOVTRANS | AA57: UREN | AB57: 700 | AC57: 999999 | AD57: 38000 | AE57: 35000 | AF57: 28780 | AG57: 28780 | AH57: SOVTRANS | AJ57: UREN | AK57: 41400 | AL57: 40500 | AM57: 35730 | AN57: 35730 | AO57: 35730 | AP57: ASSTRA | AR57: UREN | AS57: 899999.1 | AT57: 37800 | AU57: 40500 | AV57: 29304 | AW57: 29304 | AX57: SOVTRANS | AZ57: UREN | BA57: 899999.1 | BB57: 34200 | BC57: 31500 | BD57: 25902 | BE57: 25902 | BF57: SOVTRANS
I58: UST-KUT (IRKUTSK) | J58: 5300 | K58: 999999 | L58: 290000 | M58: 250000 | N58: 292000 | O58: 250000 | P58: ASSTRA | R58: UST-KUT (IRKUTSK) | S58: 5300 | T58: 999999 | U58: 260000 | V58: 250000 | W58: 237600 | X58: 237600 | Y58: SOVTRANS | AA58: UST-KUT (IRKUTSK) | AB58: 5300 | AC58: 999999 | AD58: 250000 | AE58: 999999 | AF58: 208800 | AG58: 208800 | AH58: SOVTRANS | AJ58: UST-KUT (IRKUTSK) | AK58: =IFERROR(L58-L58*15%,0) -> 246500 | AL58: =IFERROR(M58-M58*15%,0) -> 212500 | AM58: =IFERROR(N58-N58*15%,0) -> 248200 | AN58: =IFERROR(O58-O58*15%,0) -> 212500 | AO58: 212500 | AP58: DACHSER | AR58: UST-KUT (IRKUTSK) | AS58: =IFERROR(T58-T58*15%,0) -> 849999.15 | AT58: =IFERROR(U58-U58*15%,0) -> 221000 | AU58: =IFERROR(V58-V58*15%,0) -> 212500 | AV58: =IFERROR(W58-W58*15%,0) -> 201960 | AW58: 201960 | AX58: SOVTRANS | AZ58: UST-KUT (IRKUTSK) | BA58: =IFERROR(AC58-AC58*15%,0) -> 849999.15 | BB58: =IFERROR(AD58-AD58*15%,0) -> 212500 | BC58: =IFERROR(AE58-AE58*15%,0) -> 849999.15 | BD58: =IFERROR(AF58-AF58*15%,0) -> 177480 | BE58: 177480 | BF58: SOVTRANS
I59: VELIKI NOVGOROD | J59: 690 | K59: 999999 | L59: 32000 | M59: 27000 | N59: 31050 | O59: 27000 | P59: ASSTRA | R59: VELIKI NOVGOROD | S59: 690 | T59: 999999 | U59: 29000 | V59: 27000 | W59: 25440 | X59: 25440 | Y59: SOVTRANS | AA59: VELIKI NOVGOROD | AB59: 690 | AC59: 999999 | AD59: 27000 | AE59: 23000 | AF59: 22470 | AG59: 22470 | AH59: SOVTRANS | AJ59: VELIKI NOVGOROD | AK59: =IFERROR(L59-L59*10%,0) -> 28800 | AL59: =IFERROR(M59-M59*10%,0) -> 24300 | AM59: =IFERROR(N59-N59*10%,0) -> 27945 | AN59: =IFERROR(O59-O59*10%,0) -> 24300 | AO59: 24300 | AP59: DACHSER | AR59: VELIKI NOVGOROD | AS59: =IFERROR(T59-T59*10%,0) -> 899999.1 | AT59: =IFERROR(U59-U59*10%,0) -> 26100 | AU59: =IFERROR(V59-V59*10%,0) -> 24300 | AV59: =IFERROR(W59-W59*10%,0) -> 22896 | AW59: 22896 | AX59: SOVTRANS | AZ59: VELIKI NOVGOROD | BA59: =IFERROR(AC59-AC59*10%,0) -> 899999.1 | BB59: =IFERROR(AD59-AD59*10%,0) -> 24300 | BC59: =IFERROR(AE59-AE59*10%,0) -> 20700 | BD59: =IFERROR(AF59-AF59*10%,0) -> 20223 | BE59: 20223 | BF59: SOVTRANS
I60: VOLGOGRAD | J60: 930 | K60: 999999 | L60: 55000 | M60: 44000 | N60: 48050 | O60: 44000 | P60: ASSTRA | R60: VOLGOGRAD | S60: 930 | T60: 999999 | U60: 46000 | V60: 44000 | W60: 39040 | X60: 39040 | Y60: SOVTRANS | AA60: VOLGOGRAD | AB60: 930 | AC60: 999999 | AD60: 42000 | AE60: 35000 | AF60: 34270 | AG60: 34270 | AH60: SOVTRANS | AJ60: VOLGOGRAD | AK60: =IFERROR(L60-L60*10%,0) -> 49500 | AL60: 39600 | AM60: 43245 | AN60: 39600 | AO60: 39600 | AP60: DACHSER | AR60: VOLGOGRAD | AS60: 899999.1 | AT60: 41400 | AU60: 39600 | AV60: 35136 | AW60: 35136 | AX60: SOVTRANS | AZ60: VOLGOGRAD | BA60: =IFERROR(AC60-AC60*10%,0) -> 899999.1 | BB60: 37800 | BC60: 31500 | BD60: 30843 | BE60: 30843 | BF60: SOVTRANS
I61: VORONEZH | J61: 490 | K61: 999999 | L61: 32000 | M61: 25000 | N61: 25100 | O61: 25000 | P61: ASSTRA | R61: VORONEZH | S61: 490 | T61: 999999 | U61: 26000 | V61: 25000 | W61: 20680 | X61: 20680 | Y61: SOVTRANS | AA61: VORONEZH | AB61: 490 | AC61: 999999 | AD61: 23000 | AE61: 19000 | AF61: 18340 | AG61: 18340 | AH61: SOVTRANS | AJ61: VORONEZH | AK61: =IFERROR(L61-L61*10%,0) -> 28800 | AL61: 22500 | AM61: 22590 | AN61: 22500 | AO61: 22500 | AP61: DACHSER | AR61: VORONEZH | AS61: 899999.1 | AT61: 23400 | AU61: 22500 | AV61: 18612 | AW61: 18612 | AX61: SOVTRANS | AZ61: VORONEZH | BA61: =IFERROR(AC61-AC61*10%,0) -> 899999.1 | BB61: 20700 | BC61: 17100 | BD61: 16506 | BE61: 16506 | BF61: SOVTRANS
I62: VYNGAPUR | J62: 3400 | K62: 999999 | L62: 220000 | M62: 200000 | N62: 212950 | O62: 200000 | P62: ASSTRA | R62: VYNGAPUR | S62: 3400 | T62: 999999 | U62: 170000 | V62: 200000 | W62: 153930 | X62: 153930 | Y62: SOVTRANS | AA62: VYNGAPUR | AB62: 3400 | AC62: 999999 | AD62: 140000 | AE62: 160000 | AF62: 153930 | AG62: 140000 | AH62: DACHSER | AJ62: VYNGAPUR | AK62: 198000 | AL62: 180000 | AM62: 191655 | AN62: 180000 | AO62: 180000 | AP62: DACHSER | AR62: VYNGAPUR | AS62: 899999.1 | AT62: 153000 | AU62: 180000 | AV62: 138537 | AW62: 138537 | AX62: SOVTRANS | AZ62: VYNGAPUR | BA62: 899999.1 | BB62: 126000 | BC62: 144000 | BD62: 138537 | BE62: 126000 | BF62: DACHSER
I63: YAROSLAVL | J63: 380 | K63: 999999 | L63: 23000 | M63: 17000 | N63: 23400 | O63: 17000 | P63: ASSTRA | R63: YAROSLAVL | S63: 380 | T63: 999999 | U63: 20000 | V63: 17000 | W63: 19320 | X63: 17000 | Y63: ASSTRA | AA63: YAROSLAVL | AB63: 380 | AC63: 999999 | AD63: 18000 | AE63: 12000 | AF63: 17160 | AG63: 12000 | AH63: ASSTRA | AJ63: YAROSLAVL | AK63: 20700 | AL63: 15300 | AM63: 21060 | AN63: 15300 | AO63: 15300 | AP63: DACHSER | AR63: YAROSLAVL | AS63: 899999.1 | AT63: 18000 | AU63: 15300 | AV63: 17388 | AW63: 15300 | AX63: ASSTRA | AZ63: YAROSLAVL | BA63: 899999.1 | BB63: 16200 | BC63: 10800 | BD63: 15444 | BE63: 10800 | BF63: ASSTRA
I64: YNAO | J64: 4000 | K64: 999999 | L64: 220000 | M64: 200000 | N64: 999999 | O64: 200000 | P64: ASSTRA | R64: YNAO | S64: 4000 | T64: 999999 | U64: 170000 | V64: 200000 | W64: 999999 | X64: 170000 | Y64: DACHSER | AA64: YNAO | AB64: 4000 | AC64: 999999 | AD64: 140000 | AE64: 160000 | AF64: 999999 | AG64: 140000 | AH64: DACHSER | AJ64: YNAO | AK64: =IFERROR(L64-L64*15%,0) -> 187000 | AL64: =IFERROR(M64-M64*15%,0) -> 170000 | AM64: 849999.15 | AN64: 170000 | AO64: 170000 | AP64: DACHSER | AR64: YNAO | AS64: =IFERROR(T64-T64*15%,0) -> 849999.15 | AT64: =IFERROR(U64-U64*15%,0) -> 144500 | AU64: 170000 | AV64: 849999.15 | AW64: 144500 | AX64: DACHSER | AZ64: YNAO | BA64: =IFERROR(AC64-AC64*15%,0) -> 849999.15 | BB64: =IFERROR(AD64-AD64*15%,0) -> 119000 | BC64: 136000 | BD64: 849999.15 | BE64: 119000 | BF64: DACHSER
I65: Авто 10т | R65: Авто 5т | AA65: Авто 3т
